Workbook

Sheet Instructivo
A1: CRITERIO DE PRIORIZACIÓN DE TRÁMITES ADMINISTRATIVOS
A2: Instructivo
A3: Consideraciones generales
A5: En las hojas “COSTO DE ADMINISTRACIÓN PÚBLICA”y “RESUMEN” para añadir más trámites y que apliquen las fórmulas, se deberá seleccionar la primera fila y copiarla una por cada trámite de la entidad
A7: Todas las hojas tienen columnas de color celeste, en las cuales NO deben ingresar valores ya que contienen fórmulas.
A8: Para la carga en GOB.EC. La institución debe recordar que el peso máximo del archivo es de 2 MB.
A9: Esquema de puntuación
A10: Para priorizar un trámite, se realizará un análisis de criterios básicos y adicionales basado en información que disponen las instituciones sujetas a esta norma técnica. Cada criterio será puntuado según los lineamientos presentes en esta norma.
A11: a) Demanda Anual
A12: Considerará el volumen o frecuencia de las solicitudes que ingresan al año a cada institución para la gestión de un trámite en particular.
A13: La identificación del volumen anual de los trámites se realizará a través de sus registros de transacciones y/o el número de visitas de consulta de información realizadas a través de páginas web institucionales.
A14: Para realizar el registro realice lo siguiente:
A15: 1.- Seleccione la hoja DEMANDA ANUAL
A16: 2.- Ingrese los trámites de la institución registrando el identificador y nombre en las columnas respectivas.
A17: 3.- Para cada trámite debe especificar en la columna DEMANDA ANUAL el volumen o frecuencia anual, de acuerdo a lo mencionado anteriormente.
A18: 4.- Una vez terminado el llenado solicitado presione el botón PUNTUACIÓN, se ordenara de menor a mayor.
A19: 5.- Usted visualizará el ordenamiento de los trámites ingresados de acuerdo al número de volumen o frecuencia anual.
A20: 6.- Así mismo, usted visualizará el puntaje obtenido en la columna PUNTUACIÓN de acuerdo al grupo obtenido por cada trámite de acuerdo al número de volumen o frecuencia anual cosiderando lo siguiente: ** Primer grupo (trámites con menor demanda no incluye los trámites con demanda 0 ) = 3 ** Segundo grupo (trámites con demanda intermedia) = 6 ** Tercer grupo (trámites con mayor demanda) = 10
A21: Cada vez que requiera actualizar el puntaje presionando el botón puntuación, debe verificar que la celda de la columna puntaje se encuentren vacías, es decir, se debe borrar cualquier valor de puntaje obtenido previamente.
A22: b) Volumen de quejas asociadas a un trámite:
A23: Considerará la cantidad de quejas recibidas en relación a un trámite durante un año. Estas quejas deberán estar documentadas en medios físicos y/o digitales.
A24: Para determinar la puntuación, se colocará en una tabla todos los trámites con sus correspondientes quejas ordenándose de menor a mayor. Se dividirá en 2 partes en los que cada grupo contenga la misma cantidad de trámites.
A25: Para realizar el registro realice lo siguiente:
A26: 1.- Seleccione la hoja VOLUMEN DE QUEJAS
A27: 2.- Ingrese los trámites de la institución registrando el identificador y nombre en las columnas respectivas. Si usted requiere de acuerdo al número de trámites copie filas adicionales que estén dentro del cuadro
A28: 3.- Para cada trámite debe especificar en la columna VOLUMEN QUEJAS el número de quejas anual, de acuerdo a lo mencionado anteriormente.
A29: 4.- Una vez terminado el llenado solicitado presione el botón PUNTUACIÓN.
A30: 5.- Usted visualizará el ordenamiento de los trámites ingresados de acuerdo al número de volumen o frecuencia anual.
A31: 6.- Así mismo, usted visualizará el puntaje obtenido en la columna PUNTUACIÓN de acuerdo al grupo obtenido por cada trámite de acuerdo al número de volumen o frecuencia anual cosiderando lo siguiente: La puntuación se basará en los siguientes grupos: ** Primer grupo (trámites con menor cantidad de quejas, no incluye los trámites con queja 0 ) = 4 ** Segundo grupo (trámites con mayor porcentaje de quejas) = 10
A32: El valor del volumen de quejas no debe ser superior al valor del volumen de la demana, no le permitirá registrar un valor.
A33: c) Costo para la administración pública:
A34: En cada trámite, basado en un caso estándar, se deberá estimar el costo incurrido en el costo de personal y recursos necesarios para su atención desde que el administrado entregó todos los requisitos hasta que la institución entregue el producto, respuesta o servicio requerido en el trámite. Se considerará:
A35: • Costo de personal:
A36: Costo del personal para atender el trámite, se excluyen actividades realizadas automáticamente o que dependen del administrado. El tiempo deberá considerar únicamente el tiempo efectivo de trabajo del personal, no debe considerar el tiempo de espera o de movimiento.
A37: • Costo de recursos:
A38: Se deberá considerar el costo directo en el que la institución debe incurrir para atender un trámite. Se debe considerar los insumos o materia prima necesaria u cualquier otro que la institución considere pertinente.
A39: Para realizar el registro realice lo siguiente:
A40: 1.- Seleccione la hoja COSTO ADMINISTRACIÓN PÚBLICA
A41: 2.- Ingrese los trámites de la institución registrando el identificador y nombre en las columnas respectivas. Si usted requiere de acuerdo al número de trámites copie filas adicionales que estén dentro del cuadro
A42: 3.- Para calcular el tiempo de las actividades, utilizar la hoja AUXILIAR COSTO ADMINISTRACIÓN donde deberá listar todas las actividades que realiza la institución en un caso estándar y asignar el tiempo mínimo que toma cada actvidad (en horas). El tiempo total de las actividades, deberá ingresar en la correspondiente celda de la hoja COSTO ADMINISTRACIÓN PÚBLICA
A43: 4.- En función de la información registrada en el paso 3, la matriz entregará el costo del personal
A44: 5.- Completar la columna "Costo recursos", en la cual ingresará el costo directo en el que incurre la institución para entregar el trámite. En este valor se considerarán los valores correspondientes a insumos y/o materia prima mínimos que se invierten por cada trámite (no se considera mano de obra)
A45: 6.- La columna "Costo para la adm. pública" mostrará el costto de este criterio para cada trámite
A46: 7,- Para que la fórmula funcione debe arrastrar hacia abajo al último de los támites ingresados, no copiar
A47: 7.- Una vez que disponga del Costo para la administración pública, presionar el botón "GENERAR".
A48: 8. Visualizar la hoja “RESUMEN DE COSTO AP” en la que va a encontrar copiada las celdas necesarias para el ordenamiento y puntuación de las mismas al presionar el botón “PUNTUACIÓN”
A50: d) Tiempo de respuesta:
A51: Considerará los tiempos que a las instituciones les toma dar respuesta a un trámite desde que reciben la solicitud del administrado hasta la finalización del mismo. Para la definición del tiempo se considerará un caso estándar.
A52: Para determinar la puntuación, se colocará en una tabla todos los trámites con el tiempo de respuesta, ordenándose de menor a mayor. Se dividirá en 4 grupos, en los que cada uno contenga la misma cantidad de trámites.
A53: Para realizar el registro realice lo siguiente:
A54: 1.- Seleccione la hoja TIEMPO DE RESPUESTA
A55: 2.- Ingrese los trámites de la institución registrando el identificador y nombre en las columnas respectivas. Si usted requiere de acuerdo al número de trámites copie filas adicionales que estén dentro del cuadro
A56: 3.- Para cada trámite debe especificar en la columna TIEMPO RESPUESTA el tiempo, de acuerdo a lo mencionado anteriormente.
A57: 4.- Una vez terminado el llenado solicitado presione el botón PUNTUACIÓN.
A58: 5.- Usted visualizará el ordenamiento de los trámites ingresados de acuerdo al número de volumen o frecuencia anual.
A59: 6.- Así mismo, usted visualizará el puntaje obtenido en la columna PUNTUACIÓN de acuerdo al grupo obtenido por cada trámite de acuerdo al número de volumen o frecuencia anual cosiderando lo siguiente: La puntuación considera lo siguiente: ** Primer grupo (menor o igual a 40 horas laboralres) = 0 ** Segundo grupo mayor 40 horas laboralres) = 30
A60: e) Canal de atención:
A61: Considerará los canales de atención a través de los cuales el administrado puede iniciar el trámite.
A62: Para realizar el registro realice lo siguiente:
A63: 1.- Seleccione la hoja CANAL ATENCIÓN
A64: 2.- Ingrese los trámites de la institución registrando el identificador y nombre en las columnas respectivas. Si usted requiere de acuerdo al número de trámites copie filas adicionales que estén dentro del cuadro
A65: 3.- Para cada trámite debe seleccionar el canal de atención del trámite en la columna CANAL ATENCIÓN, que pueden ser: El trámite se puede completar totalmente en línea: Se considera trámite totalmente en línea cuando el administrado no requiere realizar ninguna interacción presencial con la institución = 0 El trámite no se puede completar totalmente en línea: Se considera este caso, cuando el trámite incluye al menos una actividad, incluido mecanismos de pago, en la que el administrado deba acudir presencialmente a la institución, para la realización de dicho trámite. Los trámites presenciales se consideran dentro de esta categoría = 10
A66: 4.- De acuerdo a la selección usted obtendrá la puntuación del trámite que se visualizará en la columna PUNTUACIÓN.
A68: f) Resumen
A69: En esta hoja deberá consolidar todas las puntuaciones obtenidas para cada trámite en los criterios a) hasta e). Adicionalmente deberá analizar los criterios adicionales que dispone la norma técnica, para estos últimos solamente deberá seleccionar en la celda correspondiente y la matriz asignará la puntuación adicional. Los criterios que deberá considerar son: - NECESIDADES CIUDADANAS: Si la institución ha implementado mecanismos para identificar necesidades ciudadanas respecto al trámite, seleccionar "SI", caso contrario, seleccionar "NO" - SUSCEPTIBILIDAD A CORRUPCIÓN: Si la institución dispone de información documentada sobre presuntos actos de corrupción, seleccionar "SI", caso contrario, seleccionar "NO" - VOLUMEN DE DEVOLUCIONES: Si la institución posee documentación sobre devoluciones del trámite en una cantidad significativa, seleccionar "SI", caso contrario, seleccionar "NO" Para que funcione la lista depelgable debe arrastrar la lista y la puntuación hacia abajo al último de los támites ingresados, no copiar
A70: En la columna puntaje total se realizará la sumatoria de los valores de los criterios básicos y adicionales. Este valor deberá registrarse en la plataforma GOB.EC

Sheet DEMANDA ANUAL
A1: PRIORIZACIÓN DE TRÁMITES ADMINISTRATIVOS
A2: DEMANDA ANUAL
A4: IDENTIFICADOR | B4: TRÁMITE | C4: DEMANDA ANUAL | D4: PUNTAJE
A5: MINFIN-004-01-02 | B5: Actualización del catálogo de organismos y correlativos (préstamos/donaciones) para entidades que conforman el Presupuesto General del Estado. | C5: 0 | D5: 0
A6: MINFIN-003-01-04 | B6: Actualización del Catálogo General de Administración de Fondos para entidades del sector público no financiero | C6: 0 | D6: 0
A7: MINFIN-006-01-01 | B7: Autorización para emisión y colocación de títulos - valores internacionales de entidades públicas fuera del Presupuesto General del Estado. | C7: 0 | D7: 0
A8: MINFIN-008-01-02 | B8: Autorización para la creación, modificación, emisión o eliminación de especies fiscales de las instituciones del Presupuesto General del Estado. | C8: 0 | D8: 0
A9: MEF-020-05-01 | B9: Disolución de la personería jurídica de las organizaciones sociales | C9: 0 | D9: 0
A10: MEF-019-02-03 | B10: Emisión de dictamen de no afectación presupuestaria para instrumentos administrativos de las entidades del Resto del Sector Público | C10: 0 | D10: 0
A11: MEF-019-02-02 | B11: Emisión de dictamen sobre disponibilidad de recursos financieros para empresas públicas y gobiernos autónomos descentralizados | C11: 0 | D11: 0
A12: MINFIN-018-01-01 | B12: Implantación de las herramientas transaccionales del Sistema Integrado de las Finanzas Públicas en entidades fuera del Presupuesto General del Estado. | C12: 0 | D12: 0
A13: MEF-020-02-01 | B13: Inclusión y/o exclusión de miembros de las organizaciones sociales. | C13: 0 | D13: 0
A14: MEF-020-01-01 | B14: Reconocimiento de directiva de las organizaciones sociales | C14: 0 | D14: 0
A15: MEF-020-03-01 | B15: Reconocimiento de la persona jurídica y estatuto de las organizaciones sociales. | C15: 0 | D15: 0
A16: MEF-020-04-01 | B16: Reformas del estatuto de las organizaciones sociales | C16: 0 | D16: 0
A17: MINFIN-015-01-03 | B17: Solicitud de Información de Gestión del Sistema Nacional de las Finanzas Públicas, automatizada a través de las herramientas de gestión administrativa financiera | C17: 0 | D17: 0
A18: MEF-005-02-01 | B18: Taller presencial para el uso de las herramientas informáticas de las Finanzas Públicas dirigido a servidores públicos que trabajen en las entidades que conforman el Presupuesto General del Estado. | C18: 0 | D18: 0
A19: MINFIN-003-01-01 | B19: Actualización del Plan de Cuentas Contables para entidades del sector público no financiero | C19: =0+1+0+0+0+0+0+0+0+0+0 -> 1 | D19: 3
A20: MINFIN-009-02-01 | B20: Extinción de deuda entre entidades del Sector Público. | C20: 1 | D20: 3
A21: MINFIN-013-03-03 | B21: Autorización de cierre de cuentas monetarias por cierre de Entidad que no pertenecen al Presupuesto General del Estado. | C21: 2 | D21: 3
A22: MINFIN-013-01-04 | B22: Autorización de apertura de cuentas de fondos de terceros para las instituciones del sector público, exceptuando las de la seguridad social. | C22: 3 | D22: 3
A23: MINFIN-012-01-01 | B23: Otorgamiento de garantía soberana a instituciones fuera del Presupuesto General del Estado | C23: 4 | D23: 3
A24: MINFIN-003-01-06 | B24: Actualización del Catálogo de Retenciones y descuentos a beneficiarios para entidades del sector público no financiero | C24: 7 | D24: 3
A25: MINFIN-013-01-05 | B25: Autorización de apertura de cuentas de Fideicomiso para las instituciones del sector público, financieras públicas, exceptuando los de la seguridad social. | C25: 7 | D25: 3
A26: MINFIN-013-01-06 | B26: Autorización de apertura de cuentas en el exterior o por excepción para las instituciones del sector público no financiero, exceptuando las de la seguridad social. | C26: 7 | D26: 3
A27: MINFIN-007-01-01 | B27: Autorización para contratación de endeudamiento público para las instituciones fuera del Presupuesto General del Estado. | C27: 7 | D27: 3
A28: MINFIN-004-02-01 | B28: Actualización del Clasificador presupuestario de ingresos y egresos (gastos) del Sector Público | C28: 10 | D28: 3
A29: MINFIN-009-01-01 | B29: Autorización de fideicomisos públicos. | C29: 10 | D29: 3
A30: MINFIN-010-01-01 | B30: Autorización para inversiones financieras de entidades del Sector Público no Financiero | C30: 10 | D30: 3
A31: MINFIN-002-01-04 | B31: Asignación de equipos biométricos a funcionarios autorizadores de pagos de las entidades del Sector Público. | C31: =0+1+1+0+2+3+8+3+2+2+2 -> 24 | D31: 3
A32: MINFIN-013-02-01 | B32: Autorización de actualización de la denominación de las cuentas de las instituciones del sector público, exceptuando las de la seguridad social. | C32: 24 | D32: 3
A33: MINFIN-017-01-01 | B33: Habilitación de la opción para la carga de contratos de obras y/o servicios de años anteriores para las entidades del Presupuesto General del Estado y Empresas Públicas que reciben transferencias del Presupuesto General del Estado | C33: 25 | D33: 3
A34: MINFIN-005-01-01 | B34: Capacitación virtual para el uso de las herramientas informáticas de las Finanzas Públicas dirigido a servidores públicos que trabajen en las entidades que conforman el Presupuesto General del Estado. | C34: 29 | D34: 3
A35: MINFIN-002-01-08 | B35: Reposición de un nuevo equipo biométrico (dongle y/o lector) en caso de pérdida, robo, hurto y/o daño por parte de los funcionarios autorizadores de pagos de las entidades del Sector Público. | C35: =0+0+2+2+6+12+1+2+2+2+2+3 -> 34 | D35: 6
A36: MINFIN-003-01-05 | B36: Actualización del Catálogo General de asientos tipo para entidades del sector público no financiero | C36: 35 | D36: 6
A37: MINFIN-013-03-02 | B37: Autorización de cierre de cuentas monetarias por cierre de entidad que pertenecen al Presupuesto General del Estado. | C37: 35 | D37: 6
A38: MINFIN-002-01-07 | B38: Desactivación o baja del computador registrado para autorización de pagos mediante el uso del equipo biométrico por pérdida, robo o daño. | C38: =3+2+3+2+5+7+2+6+4+4+4 -> 42 | D38: 6
A39: MINFIN-013-01-03 | B39: Autorización de apertura de cuentas de crédito para las instituciones del sector público, exceptuando los de la seguridad social. | C39: 44 | D39: 6
A40: MINFIN-001-01-03 | B40: Creación de usuarios especiales de consulta para entidades de control | C40: =0+2+3+3+4+0+12+6+6+6+6 -> 48 | D40: 6
A41: MINFIN-013-03-01 | B41: Autorización de cierre de cuentas monetarias por terminación del objeto de la cuenta correspondiente a entidades del sector público exceptuando las de la seguridad social. | C41: 55 | D41: 6
A42: MINFIN-008-01-01 | B42: Autorización para la creación, modificación o eliminación de tasas de las instituciones del Presupuesto General del Estado | C42: 55 | D42: 6
A43: MEF-019-02-01 | B43: Emisión de dictamen presupuestario de las entidades del Presupuesto General del Estado | C43: 59 | D43: 6
A44: MINFIN-002-01-06 | B44: Devolución del equipo biométrico por fusión, absorción, cambio de denominación, cambio de modelo de gestión administrativa financiera o cierre de las entidades del Sector Público. | C44: =1+1+0+0+0+2+29+15+6+6+6 -> 66 | D44: 6
A45: MINFIN-015-01-02 | B45: Información publicada sobre las finanzas públicas | C45: 86 | D45: 6
A46: MINFIN-002-01-02 | B46: Actualización de funcionarios autorizadores de pagos de las Entidades del Sector Público en el Sistema Biométrico de pagos. | C46: =7+9+9+1+1+16+10+10+8+8+8 -> 87 | D46: 6
A47: MINFIN-013-01-01 | B47: Autorización de apertura de cuentas operativas de las instituciones del sector público, exceptuando los de la seguridad social. | C47: 108 | D47: 6
A48: MINFIN-013-01-02 | B48: Autorización de apertura de cuentas de donación para las instituciones del sector público, exceptuando los de la seguridad social. | C48: 154 | D48: 6
A49: MINFIN-003-01-02 | B49: Actualización del Catálogo General de Bienes para las entidades del sector público no financiero | C49: 172 | D49: 6
A50: MINFIN-001-01-01 | B50: Creación de usuarios administradores financieros/informáticos de las Entidades del Sector Público no Financiero | C50: =31+25+17+11+20+6+20+20+18+18+18 -> 204 | D50: 6
A51: MEF-019-01-01 | B51: Emisión de certificaciones presupuestarias anuales y/o plurianuales de la entidades del Presupuesto General del Estado. | C51: 297 | D51: 10
A52: MINFIN-002-01-01 | B52: Enrolamiento en el Sistema Biométrico de pagos para funcionarios autorizadores de pagos de las entidades del Sector Público. | C52: =50+39+19+28+24+32+22+24+3+30+30 -> 301 | D52: 10
A53: MINFIN-001-01-02 | B53: Creación de usuarios de Gobiernos Autónomos Descentralizados y Empresas Públicas. | C53: =50+58+47+20+36+7+41+29+36+36+32 -> 392 | D53: 10
A54: MINFIN-001-02-01 | B54: Reseteo y Activación de Contraseñas | C54: =48+26+38+33+40+24+50+25+36+36+36 -> 392 | D54: 10
A55: MINFIN-003-01-03 | B55: Actualización del Catálogo General de Existencias para el sector público no financiero | C55: 405 | D55: 10
A56: MINFIN-009-03-01 | B56: Validación de fondos | C56: 491 | D56: 10
A57: MINFIN-015-01-01 | B57: Solicitud oficial sobre entrega de información de las finanzas públicas | C57: 546 | D57: 10
A58: MINFIN-004-01-01 | B58: Actualización del catálogo de instituciones y entidades operativas desconcentradas del Sector Público No Financiero | C58: 637 | D58: 10
A59: MINFIN-002-01-03 | B59: Desactivación y activación de funcionarios autorizadores de pagos de las entidades del Sector Público enrolados por ausencia temporal o permanente. | C59: =154+129+105+44+52+78+80+78+90+90+90 -> 990 | D59: 10
A60: MINFIN-011-01-01 | B60: Habilitación de registros contables para las entidades que transaccionan en el sistema e-SIGEF a nivel nacional. | C60: 2906 | D60: 10
A61: MEF-016-02-01 | B61: Asistencia técnica, conceptual y normativa de las Finanzas Públicas a través del canal telefónico. | C61: 4247 | D61: 10
A62: MINFIN-016-01-01 | B62: Asistencia técnica, conceptual y normativa de las Finanzas Públicas de forma presencial. | C62: 9875 | D62: 10
A63: MEF-016-03-01 | B63: Asistencia técnica, conceptual y normativa de las Finanzas Públicas mediante correo electrónico u oficio. | C63: 15865 | D63: 10
A64: MINFIN-014-03-01 | B64: Aprobación de modificaciones a los distributivos de remuneraciones mensuales unificadas institucionales, elaboradas por las entidades que forman parte del Presupuesto General del Estado | C64: 24025 | D64: 10
A65: MINFIN-014-02-01 | B65: Aprobación de reprogramaciones financieras elaboradas por las entidades que forman parte del Presupuesto General del Estado. | C65: 58792 | D65: 10
A66: MINFIN-014-01-01 | B66: Aprobación de modificaciones presupuestarias para las entidades que conforman el Presupuesto General del Estado | C66: 89121 | D66: 10

Sheet VOLUMEN DE QUEJAS
A1: PRIORIZACIÓN DE TRÁMITES ADMINISTRATIVOS
A2: VOLUMEN DE QUEJAS
A4: IDENTIFICADOR | B4: TRÁMITE | C4: VOLUMEN DEMANDA | D4: VOLUMEN DE QUEJAS | E4: PORCENTAJE | F4: PUNTUACIÓN
A5: MINFIN-004-01-02 | B5: Actualización del catálogo de organismos y correlativos (préstamos/donaciones) para entidades que conforman el Presupuesto General del Estado. | C5: 0 | D5: 0 | E5: 0 | F5: 0
A6: MINFIN-003-01-04 | B6: Actualización del Catálogo General de Administración de Fondos para entidades del sector público no financiero | C6: 0 | D6: 0 | E6: 0 | F6: 0
A7: MINFIN-006-01-01 | B7: Autorización para emisión y colocación de títulos - valores internacionales de entidades públicas fuera del Presupuesto General del Estado. | C7: 0 | D7: 0 | E7: 0 | F7: 0
A8: MINFIN-008-01-02 | B8: Autorización para la creación, modificación, emisión o eliminación de especies fiscales de las instituciones del Presupuesto General del Estado. | C8: 0 | D8: 0 | E8: 0 | F8: 0
A9: MEF-020-05-01 | B9: Disolución de la personería jurídica de las organizaciones sociales | C9: 0 | D9: 0 | E9: 0 | F9: 0
A10: MEF-019-02-03 | B10: Emisión de dictamen de no afectación presupuestaria para instrumentos administrativos de las entidades del Resto del Sector Público | C10: 0 | D10: 0 | E10: 0 | F10: 0
A11: MEF-019-02-02 | B11: Emisión de dictamen sobre disponibilidad de recursos financieros para empresas públicas y gobiernos autónomos descentralizados | C11: 0 | D11: 0 | E11: 0 | F11: 0
A12: MINFIN-018-01-01 | B12: Implantación de las herramientas transaccionales del Sistema Integrado de las Finanzas Públicas en entidades fuera del Presupuesto General del Estado. | C12: 0 | D12: 0 | E12: 0 | F12: 0
A13: MEF-020-02-01 | B13: Inclusión y/o exclusión de miembros de las organizaciones sociales. | C13: 0 | D13: 0 | E13: 0 | F13: 0
A14: MEF-020-01-01 | B14: Reconocimiento de directiva de las organizaciones sociales | C14: 0 | D14: 0 | E14: 0 | F14: 0
A15: MEF-020-03-01 | B15: Reconocimiento de la persona jurídica y estatuto de las organizaciones sociales. | C15: 0 | D15: 0 | E15: 0 | F15: 0
A16: MEF-020-04-01 | B16: Reformas del estatuto de las organizaciones sociales | C16: 0 | D16: 0 | E16: 0 | F16: 0
A17: MINFIN-015-01-03 | B17: Solicitud de Información de Gestión del Sistema Nacional de las Finanzas Públicas, automatizada a través de las herramientas de gestión administrativa financiera | C17: 0 | D17: 0 | E17: 0 | F17: 0
A18: MEF-005-02-01 | B18: Taller presencial para el uso de las herramientas informáticas de las Finanzas Públicas dirigido a servidores públicos que trabajen en las entidades que conforman el Presupuesto General del Estado. | C18: 0 | D18: 0 | E18: 0 | F18: 0
A19: MINFIN-003-01-01 | B19: Actualización del Plan de Cuentas Contables para entidades del sector público no financiero | C19: 1 | D19: 0 | E19: 0 | F19: 0
A20: MINFIN-009-02-01 | B20: Extinción de deuda entre entidades del Sector Público. | C20: 1 | D20: 0 | E20: 0 | F20: 0
A21: MINFIN-013-03-03 | B21: Autorización de cierre de cuentas monetarias por cierre de Entidad que no pertenecen al Presupuesto General del Estado. | C21: 2 | D21: 0 | E21: 0 | F21: 0
A22: MINFIN-013-01-04 | B22: Autorización de apertura de cuentas de fondos de terceros para las instituciones del sector público, exceptuando las de la seguridad social. | C22: 3 | D22: 0 | E22: 0 | F22: 0
A23: MINFIN-012-01-01 | B23: Otorgamiento de garantía soberana a instituciones fuera del Presupuesto General del Estado | C23: 4 | D23: 0 | E23: 0 | F23: 0
A24: MINFIN-003-01-06 | B24: Actualización del Catálogo de Retenciones y descuentos a beneficiarios para entidades del sector público no financiero | C24: 7 | D24: 0 | E24: 0 | F24: 0
A25: MINFIN-013-01-05 | B25: Autorización de apertura de cuentas de Fideicomiso para las instituciones del sector público, financieras públicas, exceptuando los de la seguridad social. | C25: 7 | D25: 0 | E25: 0 | F25: 0
A26: MINFIN-013-01-06 | B26: Autorización de apertura de cuentas en el exterior o por excepción para las instituciones del sector público no financiero, exceptuando las de la seguridad social. | C26: 7 | D26: 0 | E26: 0 | F26: 0
A27: MINFIN-007-01-01 | B27: Autorización para contratación de endeudamiento público para las instituciones fuera del Presupuesto General del Estado. | C27: 7 | D27: 0 | E27: 0 | F27: 0
A28: MINFIN-004-02-01 | B28: Actualización del Clasificador presupuestario de ingresos y egresos (gastos) del Sector Público | C28: 10 | D28: 0 | E28: 0 | F28: 0
A29: MINFIN-009-01-01 | B29: Autorización de fideicomisos públicos. | C29: 10 | D29: 0 | E29: 0 | F29: 0
A30: MINFIN-010-01-01 | B30: Autorización para inversiones financieras de entidades del Sector Público no Financiero | C30: 10 | D30: 0 | E30: 0 | F30: 0
A31: MINFIN-002-01-04 | B31: Asignación de equipos biométricos a funcionarios autorizadores de pagos de las entidades del Sector Público. | C31: 24 | D31: 0 | E31: 0 | F31: 0
A32: MINFIN-013-02-01 | B32: Autorización de actualización de la denominación de las cuentas de las instituciones del sector público, exceptuando las de la seguridad social. | C32: 24 | D32: 0 | E32: 0 | F32: 0
A33: MINFIN-017-01-01 | B33: Habilitación de la opción para la carga de contratos de obras y/o servicios de años anteriores para las entidades del Presupuesto General del Estado y Empresas Públicas que reciben transferencias del Presupuesto General del Estado | C33: 25 | D33: 0 | E33: 0 | F33: 0
A34: MINFIN-005-01-01 | B34: Capacitación virtual para el uso de las herramientas informáticas de las Finanzas Públicas dirigido a servidores públicos que trabajen en las entidades que conforman el Presupuesto General del Estado. | C34: 29 | D34: 0 | E34: 0 | F34: 0
A35: MINFIN-002-01-08 | B35: Reposición de un nuevo equipo biométrico (dongle y/o lector) en caso de pérdida, robo, hurto y/o daño por parte de los funcionarios autorizadores de pagos de las entidades del Sector Público. | C35: 34 | D35: 0 | E35: 0 | F35: 0
A36: MINFIN-003-01-05 | B36: Actualización del Catálogo General de asientos tipo para entidades del sector público no financiero | C36: 35 | D36: 0 | E36: 0 | F36: 0
A37: MINFIN-013-03-02 | B37: Autorización de cierre de cuentas monetarias por cierre de entidad que pertenecen al Presupuesto General del Estado. | C37: 35 | D37: 0 | E37: 0 | F37: 0
A38: MINFIN-002-01-07 | B38: Desactivación o baja del computador registrado para autorización de pagos mediante el uso del equipo biométrico por pérdida, robo o daño. | C38: 42 | D38: 0 | E38: 0 | F38: 0
A39: MINFIN-013-01-03 | B39: Autorización de apertura de cuentas de crédito para las instituciones del sector público, exceptuando los de la seguridad social. | C39: 44 | D39: 0 | E39: 0 | F39: 0
A40: MINFIN-001-01-03 | B40: Creación de usuarios especiales de consulta para entidades de control | C40: 48 | D40: 0 | E40: 0 | F40: 0
A41: MINFIN-013-03-01 | B41: Autorización de cierre de cuentas monetarias por terminación del objeto de la cuenta correspondiente a entidades del sector público exceptuando las de la seguridad social. | C41: 55 | D41: 0 | E41: 0 | F41: 0
A42: MINFIN-008-01-01 | B42: Autorización para la creación, modificación o eliminación de tasas de las instituciones del Presupuesto General del Estado | C42: 55 | D42: 0 | E42: 0 | F42: 0
A43: MEF-019-02-01 | B43: Emisión de dictamen presupuestario de las entidades del Presupuesto General del Estado | C43: 59 | D43: 0 | E43: 0 | F43: 0
A44: MINFIN-002-01-06 | B44: Devolución del equipo biométrico por fusión, absorción, cambio de denominación, cambio de modelo de gestión administrativa financiera o cierre de las entidades del Sector Público. | C44: 66 | D44: 0 | E44: 0 | F44: 0
A45: MINFIN-015-01-02 | B45: Información publicada sobre las finanzas públicas | C45: 86 | D45: 0 | E45: 0 | F45: 0
A46: MINFIN-002-01-02 | B46: Actualización de funcionarios autorizadores de pagos de las Entidades del Sector Público en el Sistema Biométrico de pagos. | C46: 87 | D46: 0 | E46: 0 | F46: 0
A47: MINFIN-013-01-01 | B47: Autorización de apertura de cuentas operativas de las instituciones del sector público, exceptuando los de la seguridad social. | C47: 108 | D47: 0 | E47: 0 | F47: 0
A48: MINFIN-013-01-02 | B48: Autorización de apertura de cuentas de donación para las instituciones del sector público, exceptuando los de la seguridad social. | C48: 154 | D48: 0 | E48: 0 | F48: 0
A49: MINFIN-003-01-02 | B49: Actualización del Catálogo General de Bienes para las entidades del sector público no financiero | C49: 172 | D49: 0 | E49: 0 | F49: 0
A50: MINFIN-001-01-01 | B50: Creación de usuarios administradores financieros/informáticos de las Entidades del Sector Público no Financiero | C50: 204 | D50: 0 | E50: 0 | F50: 0
A51: MEF-019-01-01 | B51: Emisión de certificaciones presupuestarias anuales y/o plurianuales de la entidades del Presupuesto General del Estado. | C51: 297 | D51: 0 | E51: 0 | F51: 0
A52: MINFIN-002-01-01 | B52: Enrolamiento en el Sistema Biométrico de pagos para funcionarios autorizadores de pagos de las entidades del Sector Público. | C52: 301 | D52: 0 | E52: 0 | F52: 0
A53: MINFIN-001-01-02 | B53: Creación de usuarios de Gobiernos Autónomos Descentralizados y Empresas Públicas. | C53: 392 | D53: 0 | E53: 0 | F53: 0
A54: MINFIN-001-02-01 | B54: Reseteo y Activación de Contraseñas | C54: 392 | D54: 0 | E54: 0 | F54: 0
A55: MINFIN-003-01-03 | B55: Actualización del Catálogo General de Existencias para el sector público no financiero | C55: 405 | D55: 0 | E55: 0 | F55: 0
A56: MINFIN-009-03-01 | B56: Validación de fondos | C56: 491 | D56: 0 | E56: 0 | F56: 0
A57: MINFIN-015-01-01 | B57: Solicitud oficial sobre entrega de información de las finanzas públicas | C57: 546 | D57: 0 | E57: 0 | F57: 0
A58: MINFIN-004-01-01 | B58: Actualización del catálogo de instituciones y entidades operativas desconcentradas del Sector Público No Financiero | C58: 637 | D58: 0 | E58: 0 | F58: 0
A59: MINFIN-002-01-03 | B59: Desactivación y activación de funcionarios autorizadores de pagos de las entidades del Sector Público enrolados por ausencia temporal o permanente. | C59: 990 | D59: 0 | E59: 0 | F59: 0
A60: MINFIN-011-01-01 | B60: Habilitación de registros contables para las entidades que transaccionan en el sistema e-SIGEF a nivel nacional. | C60: 2906 | D60: 0 | E60: 0 | F60: 0
A61: MEF-016-02-01 | B61: Asistencia técnica, conceptual y normativa de las Finanzas Públicas a través del canal telefónico. | C61: 4247 | D61: 0 | E61: 0 | F61: 0
A62: MINFIN-016-01-01 | B62: Asistencia técnica, conceptual y normativa de las Finanzas Públicas de forma presencial. | C62: 9875 | D62: 0 | E62: 0 | F62: 0
A63: MEF-016-03-01 | B63: Asistencia técnica, conceptual y normativa de las Finanzas Públicas mediante correo electrónico u oficio. | C63: 15865 | D63: 0 | E63: 0 | F63: 0
A64: MINFIN-014-03-01 | B64: Aprobación de modificaciones a los distributivos de remuneraciones mensuales unificadas institucionales, elaboradas por las entidades que forman parte del Presupuesto General del Estado | C64: 24025 | D64: 0 | E64: 0 | F64: 0
A65: MINFIN-014-02-01 | B65: Aprobación de reprogramaciones financieras elaboradas por las entidades que forman parte del Presupuesto General del Estado. | C65: 58792 | D65: 0 | E65: 0 | F65: 0
A66: MINFIN-014-01-01 | B66: Aprobación de modificaciones presupuestarias para las entidades que conforman el Presupuesto General del Estado | C66: 89121 | D66: 0 | E66: 0 | F66: 0

Sheet COSTO ADMINISTRACIÓN PÚBLICA
A1: PRIORIZACIÓN DE TRÁMITES ADMINISTRATIVOS
A2: COSTOS PARA LA ADMINISTRACIÓN PÚBLICA
A4: IDENTIFICADOR | B4: TRÁMITE | C4: INSUMOS PARA COSTO | F4: COSTO PARA LA ADM. PÚBLICA | H4: SBU | I4: 400
C5: TIEMPO (HORAS) | D5: COSTO PERSONAL | E5: COSTO RECURSOS
A6: MINFIN-004-01-02 | B6: Actualización del catálogo de organismos y correlativos (préstamos/donaciones) para entidades que conforman el Presupuesto General del Estado. | C6: 3 | D6: =C6*$I$4/160 -> 7.5 | E6: 4.77 | F6: =D6+E6 -> 12.27
A7: MINFIN-003-01-04 | B7: Actualización del Catálogo General de Administración de Fondos para entidades del sector público no financiero | C7: 3 | D7: =C7*$I$4/160 -> 7.5 | E7: 4.3725 | F7: =D7+E7 -> 11.8725
A8: MINFIN-006-01-01 | B8: Autorización para emisión y colocación de títulos - valores internacionales de entidades públicas fuera del Presupuesto General del Estado. | C8: 3 | D8: 7.5 | E8: 3.975 | F8: 11.475
A9: MINFIN-008-01-02 | B9: Autorización para la creación, modificación, emisión o eliminación de especies fiscales de las instituciones del Presupuesto General del Estado. | C9: 3 | D9: 7.5 | E9: 0.9275 | F9: 8.4275
A10: MEF-020-05-01 | B10: Disolución de la personería jurídica de las organizaciones sociales | C10: 0.2 | D10: 0.5 | E10: 0.318 | F10: 0.818
A11: MEF-019-02-03 | B11: Emisión de dictamen de no afectación presupuestaria para instrumentos administrativos de las entidades del Resto del Sector Público | C11: 2.75 | D11: 6.875 | E11: 7.3975 | F11: 14.2725
A12: MEF-019-02-02 | B12: Emisión de dictamen sobre disponibilidad de recursos financieros para empresas públicas y gobiernos autónomos descentralizados | C12: 2.75 | D12: 6.875 | E12: 4.6475 | F12: 11.5225
A13: MINFIN-018-01-01 | B13: Implantación de las herramientas transaccionales del Sistema Integrado de las Finanzas Públicas en entidades fuera del Presupuesto General del Estado. | C13: 2.75 | D13: 6.875 | E13: 4.6475 | F13: 11.5225
A14: MEF-020-02-01 | B14: Inclusión y/o exclusión de miembros de las organizaciones sociales. | C14: 2.75 | D14: 6.875 | E14: 4.6475 | F14: 11.5225
A15: MEF-020-01-01 | B15: Reconocimiento de directiva de las organizaciones sociales | C15: 2.75 | D15: 6.875 | E15: 2.75 | F15: 9.625
A16: MEF-020-03-01 | B16: Reconocimiento de la persona jurídica y estatuto de las organizaciones sociales. | C16: 2.75 | D16: 6.875 | E16: 4.6475 | F16: 11.5225
A17: MEF-020-04-01 | B17: Reformas del estatuto de las organizaciones sociales | C17: 176 | D17: 440 | E17: 5.666333333 | F17: 445.6663333
A18: MINFIN-015-01-03 | B18: Solicitud de Información de Gestión del Sistema Nacional de las Finanzas Públicas, automatizada a través de las herramientas de gestión administrativa financiera | C18: 7 | D18: 17.5 | E18: 10.32 | F18: 27.82
A19: MEF-005-02-01 | B19: Taller presencial para el uso de las herramientas informáticas de las Finanzas Públicas dirigido a servidores públicos que trabajen en las entidades que conforman el Presupuesto General del Estado. | C19: 7 | D19: 17.5 | E19: 10.32 | F19: 27.82
A20: MINFIN-003-01-01 | B20: Actualización del Plan de Cuentas Contables para entidades del sector público no financiero | C20: 7 | D20: 17.5 | E20: 10.32 | F20: 27.82
A21: MINFIN-009-02-01 | B21: Extinción de deuda entre entidades del Sector Público. | C21: 7 | D21: 17.5 | E21: 10.32 | F21: 27.82
A22: MINFIN-013-03-03 | B22: Autorización de cierre de cuentas monetarias por cierre de Entidad que no pertenecen al Presupuesto General del Estado. | C22: 7 | D22: 17.5 | E22: 10.32 | F22: 27.82
A23: MINFIN-013-01-04 | B23: Autorización de apertura de cuentas de fondos de terceros para las instituciones del sector público, exceptuando las de la seguridad social. | C23: 9.5 | D23: 23.75 | E23: 10.32 | F23: 34.07
A24: MINFIN-012-01-01 | B24: Otorgamiento de garantía soberana a instituciones fuera del Presupuesto General del Estado | C24: 9.5 | D24: 23.75 | E24: 10.32 | F24: 34.07
A25: MINFIN-003-01-06 | B25: Actualización del Catálogo de Retenciones y descuentos a beneficiarios para entidades del sector público no financiero | C25: 9.5 | D25: 23.75 | E25: 10.32 | F25: 34.07
A26: MINFIN-013-01-05 | B26: Autorización de apertura de cuentas de Fideicomiso para las instituciones del sector público, financieras públicas, exceptuando los de la seguridad social. | C26: 17 | D26: 42.5 | E26: 10.32 | F26: 52.82
A27: MINFIN-013-01-06 | B27: Autorización de apertura de cuentas en el exterior o por excepción para las instituciones del sector público no financiero, exceptuando las de la seguridad social. | C27: 13 | D27: 32.5 | E27: 10.32 | F27: 42.82
A28: MINFIN-007-01-01 | B28: Autorización para contratación de endeudamiento público para las instituciones fuera del Presupuesto General del Estado. | C28: 460 | D28: 1150 | E28: 10.32 | F28: 1160.32
A29: MINFIN-004-02-01 | B29: Actualización del Clasificador presupuestario de ingresos y egresos (gastos) del Sector Público | C29: 460 | D29: 1150 | E29: 10.32 | F29: 1160.32
A30: MINFIN-009-01-01 | B30: Autorización de fideicomisos públicos. | C30: 80 | D30: 200 | E30: 10.32 | F30: 210.32
A31: MINFIN-010-01-01 | B31: Autorización para inversiones financieras de entidades del Sector Público no Financiero | C31: 80 | D31: 200 | E31: 83.2 | F31: 283.2
A32: MINFIN-002-01-04 | B32: Asignación de equipos biométricos a funcionarios autorizadores de pagos de las entidades del Sector Público. | C32: 600 | D32: 1500 | E32: 624 | F32: 2124
A33: MINFIN-013-02-01 | B33: Autorización de actualización de la denominación de las cuentas de las instituciones del sector público, exceptuando las de la seguridad social. | C33: 24 | D33: 60 | E33: 2329.62 | F33: 2389.62
A34: MINFIN-017-01-01 | B34: Habilitación de la opción para la carga de contratos de obras y/o servicios de años anteriores para las entidades del Presupuesto General del Estado y Empresas Públicas que reciben transferencias del Presupuesto General del Estado | C34: 32 | D34: 80 | E34: 33.28 | F34: 113.28
A35: MINFIN-005-01-01 | B35: Capacitación virtual para el uso de las herramientas informáticas de las Finanzas Públicas dirigido a servidores públicos que trabajen en las entidades que conforman el Presupuesto General del Estado. | C35: 560 | D35: 1400 | E35: 582.4 | F35: 1982.4
A36: MINFIN-002-01-08 | B36: Reposición de un nuevo equipo biométrico (dongle y/o lector) en caso de pérdida, robo, hurto y/o daño por parte de los funcionarios autorizadores de pagos de las entidades del Sector Público. | C36: 2240 | D36: 5600 | E36: 24.96 | F36: 5624.96
A37: MINFIN-003-01-05 | B37: Actualización del Catálogo General de asientos tipo para entidades del sector público no financiero | C37: 800 | D37: 2000 | E37: 832 | F37: 2832
A38: MINFIN-013-03-02 | B38: Autorización de cierre de cuentas monetarias por cierre de entidad que pertenecen al Presupuesto General del Estado. | C38: 8767 | D38: 21917.5 | E38: 4.44 | F38: 21921.94
A39: MINFIN-002-01-07 | B39: Desactivación o baja del computador registrado para autorización de pagos mediante el uso del equipo biométrico por pérdida, robo o daño. | C39: 8767 | D39: 21917.5 | E39: 4.44 | F39: 21921.94
A40: MINFIN-013-01-03 | B40: Autorización de apertura de cuentas de crédito para las instituciones del sector público, exceptuando los de la seguridad social. | C40: 10750 | D40: 26875 | E40: 5.22 | F40: 26880.22
A41: MINFIN-001-01-03 | B41: Creación de usuarios especiales de consulta para entidades de control | C41: 9750 | D41: 24375 | E41: 4.53 | F41: 24379.53
A42: MINFIN-013-03-01 | B42: Autorización de cierre de cuentas monetarias por terminación del objeto de la cuenta correspondiente a entidades del sector público exceptuando las de la seguridad social. | C42: 8250 | D42: 20625 | E42: 593 | F42: 21218
A43: MINFIN-008-01-01 | B43: Autorización para la creación, modificación o eliminación de tasas de las instituciones del Presupuesto General del Estado | C43: 10750 | D43: 26875 | E43: 5.33 | F43: 26880.33
A44: MEF-019-02-01 | B44: Emisión de dictamen presupuestario de las entidades del Presupuesto General del Estado | C44: 41 | D44: 102.5 | E44: 5.53 | F44: 108.03
A45: MINFIN-002-01-06 | B45: Devolución del equipo biométrico por fusión, absorción, cambio de denominación, cambio de modelo de gestión administrativa financiera o cierre de las entidades del Sector Público. | C45: 41 | D45: 102.5 | E45: 5.98 | F45: 108.48
A46: MINFIN-015-01-02 | B46: Información publicada sobre las finanzas públicas | C46: 41 | D46: 102.5 | E46: 5.59 | F46: 108.09
A47: MINFIN-002-01-02 | B47: Actualización de funcionarios autorizadores de pagos de las Entidades del Sector Público en el Sistema Biométrico de pagos. | C47: 41 | D47: 102.5 | E47: 6.18 | F47: 108.68
A48: MINFIN-013-01-01 | B48: Autorización de apertura de cuentas operativas de las instituciones del sector público, exceptuando los de la seguridad social. | C48: 15 | D48: 37.5 | E48: 3.12 | F48: 40.62
A49: MINFIN-013-01-02 | B49: Autorización de apertura de cuentas de donación para las instituciones del sector público, exceptuando los de la seguridad social. | C49: 9 | D49: 22.5 | E49: 1.04 | F49: 23.54
A50: MINFIN-003-01-02 | B50: Actualización del Catálogo General de Bienes para las entidades del sector público no financiero | C50: 15 | D50: 37.5 | E50: 3.12 | F50: 40.62
A51: MINFIN-001-01-01 | B51: Creación de usuarios administradores financieros/informáticos de las Entidades del Sector Público no Financiero | C51: 47 | D51: 117.5 | E51: 2.28 | F51: 119.78
A52: MEF-019-01-01 | B52: Emisión de certificaciones presupuestarias anuales y/o plurianuales de la entidades del Presupuesto General del Estado. | C52: 0.5 | D52: 1.25 | E52: 0.445 | F52: 1.695
A53: MINFIN-002-01-01 | B53: Enrolamiento en el Sistema Biométrico de pagos para funcionarios autorizadores de pagos de las entidades del Sector Público. | C53: 0.6666666667 | D53: 1.666666667 | E53: 0.52 | F53: 2.186666667
A54: MINFIN-001-01-02 | B54: Creación de usuarios de Gobiernos Autónomos Descentralizados y Empresas Públicas. | C54: 0.2666666667 | D54: 0.6666666667 | E54: 0.728 | F54: 1.394666667
A55: MINFIN-001-02-01 | B55: Reseteo y Activación de Contraseñas | C55: 0.2833333333 | D55: 0.7083333333 | E55: 0.728 | F55: 1.436333333
A56: MINFIN-003-01-03 | B56: Actualización del Catálogo General de Existencias para el sector público no financiero | C56: 0.75 | D56: 1.875 | E56: 1.16 | F56: 3.035
A57: MINFIN-009-03-01 | B57: Validación de fondos | C57: 1.83 | D57: 4.575 | E57: 3.15 | F57: 7.725
A58: MINFIN-015-01-01 | B58: Solicitud oficial sobre entrega de información de las finanzas públicas | C58: 4.25 | D58: 10.625 | E58: 1.79 | F58: 12.415
A59: MINFIN-004-01-01 | B59: Actualización del catálogo de instituciones y entidades operativas desconcentradas del Sector Público No Financiero | C59: 2 | D59: 5 | E59: 1.29 | F59: 6.29
A60: MINFIN-002-01-03 | B60: Desactivación y activación de funcionarios autorizadores de pagos de las entidades del Sector Público enrolados por ausencia temporal o permanente. | C60: 2 | D60: 5 | E60: 1.29 | F60: 6.29
A61: MINFIN-011-01-01 | B61: Habilitación de registros contables para las entidades que transaccionan en el sistema e-SIGEF a nivel nacional. | C61: 2 | D61: 5 | E61: 1.29 | F61: 6.29
A62: MEF-016-02-01 | B62: Asistencia técnica, conceptual y normativa de las Finanzas Públicas a través del canal telefónico. | C62: 2 | D62: 5 | E62: 1.29 | F62: 6.29
A63: MINFIN-016-01-01 | B63: Asistencia técnica, conceptual y normativa de las Finanzas Públicas de forma presencial. | C63: 2 | D63: 5 | E63: 1.49 | F63: 6.49
A64: MEF-016-03-01 | B64: Asistencia técnica, conceptual y normativa de las Finanzas Públicas mediante correo electrónico u oficio. | C64: 2 | D64: 5 | E64: 1.49 | F64: 6.49
A65: MINFIN-014-03-01 | B65: Aprobación de modificaciones a los distributivos de remuneraciones mensuales unificadas institucionales, elaboradas por las entidades que forman parte del Presupuesto General del Estado | C65: 1.67 | D65: 4.175 | E65: 1.79 | F65: 5.965
A66: MINFIN-014-02-01 | B66: Aprobación de reprogramaciones financieras elaboradas por las entidades que forman parte del Presupuesto General del Estado. | C66: 1.67 | D66: 4.175 | E66: 1.79 | F66: 5.965
A67: MINFIN-014-01-01 | B67: Aprobación de modificaciones presupuestarias para las entidades que conforman el Presupuesto General del Estado | C67: 1.67 | D67: 4.175 | E67: 1.79 | F67: 5.965

Sheet RESUMEN DE COSTOS AP
A1: PRIORIZACIÓN DE TRÁMITES ADMINISTRATIVOS
A2: COSTOS PARA LA ADMINISTRACIÓN PÚBLICA
A4: IDENTIFICADOR | B4: TRÁMITE | C4: COSTO PARA LA ADM. PÚBLICA | D4: PUNTUACIÓN
A5: MEF-020-05-01 | B5: Disolución de la personería jurídica de las organizaciones sociales | C5: 0.818 | D5: 5
A6: MINFIN-001-01-02 | B6: Creación de usuarios de Gobiernos Autónomos Descentralizados y Empresas Públicas. | C6: 1.394666667 | D6: 5
A7: MINFIN-001-02-01 | B7: Reseteo y Activación de Contraseñas | C7: 1.436333333 | D7: 5
A8: MEF-019-01-01 | B8: Emisión de certificaciones presupuestarias anuales y/o plurianuales de la entidades del Presupuesto General del Estado. | C8: 1.695 | D8: 5
A9: MINFIN-002-01-01 | B9: Enrolamiento en el Sistema Biométrico de pagos para funcionarios autorizadores de pagos de las entidades del Sector Público. | C9: 2.186666667 | D9: 5
A10: MINFIN-003-01-03 | B10: Actualización del Catálogo General de Existencias para el sector público no financiero | C10: 3.035 | D10: 5
A11: MINFIN-014-03-01 | B11: Aprobación de modificaciones a los distributivos de remuneraciones mensuales unificadas institucionales, elaboradas por las entidades que forman parte del Presupuesto General del Estado | C11: 5.965 | D11: 5
A12: MINFIN-014-01-01 | B12: Aprobación de modificaciones presupuestarias para las entidades que conforman el Presupuesto General del Estado | C12: 5.965 | D12: 5
A13: MINFIN-014-02-01 | B13: Aprobación de reprogramaciones financieras elaboradas por las entidades que forman parte del Presupuesto General del Estado. | C13: 5.965 | D13: 5
A14: MINFIN-004-01-01 | B14: Actualización del catálogo de instituciones y entidades operativas desconcentradas del Sector Público No Financiero | C14: 6.29 | D14: 5
A15: MEF-016-02-01 | B15: Asistencia técnica, conceptual y normativa de las Finanzas Públicas a través del canal telefónico. | C15: 6.29 | D15: 5
A16: MINFIN-002-01-03 | B16: Desactivación y activación de funcionarios autorizadores de pagos de las entidades del Sector Público enrolados por ausencia temporal o permanente. | C16: 6.29 | D16: 5
A17: MINFIN-011-01-01 | B17: Habilitación de registros contables para las entidades que transaccionan en el sistema e-SIGEF a nivel nacional. | C17: 6.29 | D17: 5
A18: MINFIN-016-01-01 | B18: Asistencia técnica, conceptual y normativa de las Finanzas Públicas de forma presencial. | C18: 6.49 | D18: 5
A19: MEF-016-03-01 | B19: Asistencia técnica, conceptual y normativa de las Finanzas Públicas mediante correo electrónico u oficio. | C19: 6.49 | D19: 5
A20: MINFIN-009-03-01 | B20: Validación de fondos | C20: 7.725 | D20: 5
A21: MINFIN-008-01-02 | B21: Autorización para la creación, modificación, emisión o eliminación de especies fiscales de las instituciones del Presupuesto General del Estado. | C21: 8.4275 | D21: 5
A22: MEF-020-01-01 | B22: Reconocimiento de directiva de las organizaciones sociales | C22: 9.625 | D22: 5
A23: MINFIN-006-01-01 | B23: Autorización para emisión y colocación de títulos - valores internacionales de entidades públicas fuera del Presupuesto General del Estado. | C23: 11.475 | D23: 5
A24: MEF-019-02-02 | B24: Emisión de dictamen sobre disponibilidad de recursos financieros para empresas públicas y gobiernos autónomos descentralizados | C24: 11.5225 | D24: 5
A25: MINFIN-018-01-01 | B25: Implantación de las herramientas transaccionales del Sistema Integrado de las Finanzas Públicas en entidades fuera del Presupuesto General del Estado. | C25: 11.5225 | D25: 5
A26: MEF-020-02-01 | B26: Inclusión y/o exclusión de miembros de las organizaciones sociales. | C26: 11.5225 | D26: 5
A27: MEF-020-03-01 | B27: Reconocimiento de la persona jurídica y estatuto de las organizaciones sociales. | C27: 11.5225 | D27: 5
A28: MINFIN-003-01-04 | B28: Actualización del Catálogo General de Administración de Fondos para entidades del sector público no financiero | C28: 11.8725 | D28: 10
A29: MINFIN-004-01-02 | B29: Actualización del catálogo de organismos y correlativos (préstamos/donaciones) para entidades que conforman el Presupuesto General del Estado. | C29: 12.27 | D29: 10
A30: MINFIN-015-01-01 | B30: Solicitud oficial sobre entrega de información de las finanzas públicas | C30: 12.415 | D30: 10
A31: MEF-019-02-03 | B31: Emisión de dictamen de no afectación presupuestaria para instrumentos administrativos de las entidades del Resto del Sector Público | C31: 14.2725 | D31: 10
A32: MINFIN-013-01-02 | B32: Autorización de apertura de cuentas de donación para las instituciones del sector público, exceptuando los de la seguridad social. | C32: 23.54 | D32: 10
A33: MINFIN-003-01-01 | B33: Actualización del Plan de Cuentas Contables para entidades del sector público no financiero | C33: 27.82 | D33: 10
A34: MINFIN-013-03-03 | B34: Autorización de cierre de cuentas monetarias por cierre de Entidad que no pertenecen al Presupuesto General del Estado. | C34: 27.82 | D34: 10
A35: MINFIN-009-02-01 | B35: Extinción de deuda entre entidades del Sector Público. | C35: 27.82 | D35: 10
A36: MINFIN-015-01-03 | B36: Solicitud de Información de Gestión del Sistema Nacional de las Finanzas Públicas, automatizada a través de las herramientas de gestión administrativa financiera | C36: 27.82 | D36: 10
A37: MEF-005-02-01 | B37: Taller presencial para el uso de las herramientas informáticas de las Finanzas Públicas dirigido a servidores públicos que trabajen en las entidades que conforman el Presupuesto General del Estado. | C37: 27.82 | D37: 10
A38: MINFIN-003-01-06 | B38: Actualización del Catálogo de Retenciones y descuentos a beneficiarios para entidades del sector público no financiero | C38: 34.07 | D38: 10
A39: MINFIN-013-01-04 | B39: Autorización de apertura de cuentas de fondos de terceros para las instituciones del sector público, exceptuando las de la seguridad social. | C39: 34.07 | D39: 10
A40: MINFIN-012-01-01 | B40: Otorgamiento de garantía soberana a instituciones fuera del Presupuesto General del Estado | C40: 34.07 | D40: 10
A41: MINFIN-003-01-02 | B41: Actualización del Catálogo General de Bienes para las entidades del sector público no financiero | C41: 40.62 | D41: 10
A42: MINFIN-013-01-01 | B42: Autorización de apertura de cuentas operativas de las instituciones del sector público, exceptuando los de la seguridad social. | C42: 40.62 | D42: 10
A43: MINFIN-013-01-06 | B43: Autorización de apertura de cuentas en el exterior o por excepción para las instituciones del sector público no financiero, exceptuando las de la seguridad social. | C43: 42.82 | D43: 10
A44: MINFIN-013-01-05 | B44: Autorización de apertura de cuentas de Fideicomiso para las instituciones del sector público, financieras públicas, exceptuando los de la seguridad social. | C44: 52.82 | D44: 10
A45: MEF-019-02-01 | B45: Emisión de dictamen presupuestario de las entidades del Presupuesto General del Estado | C45: 108.03 | D45: 20
A46: MINFIN-015-01-02 | B46: Información publicada sobre las finanzas públicas | C46: 108.09 | D46: 20
A47: MINFIN-002-01-06 | B47: Devolución del equipo biométrico por fusión, absorción, cambio de denominación, cambio de modelo de gestión administrativa financiera o cierre de las entidades del Sector Público. | C47: 108.48 | D47: 20
A48: MINFIN-002-01-02 | B48: Actualización de funcionarios autorizadores de pagos de las Entidades del Sector Público en el Sistema Biométrico de pagos. | C48: 108.68 | D48: 20
A49: MINFIN-017-01-01 | B49: Habilitación de la opción para la carga de contratos de obras y/o servicios de años anteriores para las entidades del Presupuesto General del Estado y Empresas Públicas que reciben transferencias del Presupuesto General del Estado | C49: 113.28 | D49: 20
A50: MINFIN-001-01-01 | B50: Creación de usuarios administradores financieros/informáticos de las Entidades del Sector Público no Financiero | C50: 119.78 | D50: 20
A51: MINFIN-009-01-01 | B51: Autorización de fideicomisos públicos. | C51: 210.32 | D51: 20
A52: MINFIN-010-01-01 | B52: Autorización para inversiones financieras de entidades del Sector Público no Financiero | C52: 283.2 | D52: 20
A53: MEF-020-04-01 | B53: Reformas del estatuto de las organizaciones sociales | C53: 445.6663333 | D53: 20
A54: MINFIN-004-02-01 | B54: Actualización del Clasificador presupuestario de ingresos y egresos (gastos) del Sector Público | C54: 1160.32 | D54: 20
A55: MINFIN-007-01-01 | B55: Autorización para contratación de endeudamiento público para las instituciones fuera del Presupuesto General del Estado. | C55: 1160.32 | D55: 20
A56: MINFIN-005-01-01 | B56: Capacitación virtual para el uso de las herramientas informáticas de las Finanzas Públicas dirigido a servidores públicos que trabajen en las entidades que conforman el Presupuesto General del Estado. | C56: 1982.4 | D56: 20
A57: MINFIN-002-01-04 | B57: Asignación de equipos biométricos a funcionarios autorizadores de pagos de las entidades del Sector Público. | C57: 2124 | D57: 20
A58: MINFIN-013-02-01 | B58: Autorización de actualización de la denominación de las cuentas de las instituciones del sector público, exceptuando las de la seguridad social. | C58: 2389.62 | D58: 20
A59: MINFIN-003-01-05 | B59: Actualización del Catálogo General de asientos tipo para entidades del sector público no financiero | C59: 2832 | D59: 20
A60: MINFIN-002-01-08 | B60: Reposición de un nuevo equipo biométrico (dongle y/o lector) en caso de pérdida, robo, hurto y/o daño por parte de los funcionarios autorizadores de pagos de las entidades del Sector Público. | C60: 5624.96 | D60: 20
A61: MINFIN-013-03-01 | B61: Autorización de cierre de cuentas monetarias por terminación del objeto de la cuenta correspondiente a entidades del sector público exceptuando las de la seguridad social. | C61: 21218 | D61: 20
A62: MINFIN-013-03-02 | B62: Autorización de cierre de cuentas monetarias por cierre de entidad que pertenecen al Presupuesto General del Estado. | C62: 21921.94 | D62: 20
A63: MINFIN-002-01-07 | B63: Desactivación o baja del computador registrado para autorización de pagos mediante el uso del equipo biométrico por pérdida, robo o daño. | C63: 21921.94 | D63: 20
A64: MINFIN-001-01-03 | B64: Creación de usuarios especiales de consulta para entidades de control | C64: 24379.53 | D64: 20
A65: MINFIN-013-01-03 | B65: Autorización de apertura de cuentas de crédito para las instituciones del sector público, exceptuando los de la seguridad social. | C65: 26880.22 | D65: 20
A66: MINFIN-008-01-01 | B66: Autorización para la creación, modificación o eliminación de tasas de las instituciones del Presupuesto General del Estado | C66: 26880.33 | D66: 20

Sheet AUXILIAR COSTO ADMINISTRACIÓN (hidden)
A2: TRÁMITE: | B2: Implantación de las herramientas transaccionales del Sistema Integrado de las Finanzas Públicas en entidades fuera del Presupuesto General del Estado. | E2: COSTO DE RECURSOS POR HORA
A3: NO. | B3: ACTIVIDAD | C3: TIEMPO (HORAS) | E3: Uso de internet | F3: 0.5
A4: 1 | B4: Recibir y revisar información de requisitos | C4: =20/60 -> 0.3333333333 | E4: Tarifa de luz | F4: 0.09
A5: 2 | B5: preparar respuesta | C5: =20/60 -> 0.3333333333 | E5: Uso de computador | F5: 0.5
A6: 3 | B6: Revisar información | C6: 1 | E6: Uso de Software | F6: 0.2
A7: 4 | B7: Elaborar respuesta de factibilidad | C7: =30/60 -> 0.5 | E7: impresiónes | F7: 0.5
A8: 5 | B8: Analizar factibilidad de implantación | C8: 1 | E8: Total | F8: =SUM(F3:F7) -> 1.79
A9: 6 | B9: Revisar información requerida | C9: =20/60 -> 0.3333333333
A10: 7 | B10: Remitir retroalimentación de información | C10: =20/60 -> 0.3333333333
A11: 8 | B11: Notificar creación de usuarios | C11: =10/60 -> 0.1666666667
A12: 9 | B12: Validar información ingresada | C12: =15/60 -> 0.25
B13: SUMATORIA ACTIVIDADES | C13: =SUM(C4:C12) -> 4.25
A17: TRÁMITE: | B17: Emisión de certificaciones presupuestarias anuales y/o plurianuales de la entidades del Presupuesto General del Estado. | E17: COSTO DE RECURSOS POR HORA
A18: NO. | B18: ACTIVIDAD | C18: TIEMPO (HORAS) | E18: Uso de internet | F18: 0.5
A19: 1 | B19: Recibir y revisar información de requisitos | C19: =20/60 -> 0.3333333333 | E19: Tarifa de luz | F19: 0.09
A20: 2 | B20: preparar respuesta de información | C20: =20/60 -> 0.3333333333 | E20: Uso de computador | F20: 0.5
A21: 3 | B21: Analizar información habilitante | C21: 1 | E21: Uso de Software | F21: 0.2
A22: 4 | B22: Preparar y entregar respuesta de certificación | C22: =20/60 -> 0.3333333333 | E22: Total | F22: =SUM(F18:F21) -> 1.29
B23: SUMATORIA ACTIVIDADES | C23: =SUM(C19:C22) -> 2
A27: TRÁMITE: | B27: Emisión de dictamen presupuestario de las entidades del Presupuesto General del Estado | E27: COSTO DE RECURSOS POR HORA
A28: NO. | B28: ACTIVIDAD | C28: TIEMPO (HORAS) | E28: Uso de internet | F28: 0.5
A29: 1 | B29: Recibir y revisar información de requisitos | C29: =20/60 -> 0.3333333333 | E29: Tarifa de luz | F29: 0.09
A30: 2 | B30: preparar respuesta de información | C30: =20/60 -> 0.3333333333 | E30: Uso de computador | F30: 0.5
A31: 3 | B31: Analizar información habilitante | C31: 1 | E31: Uso de Software | F31: 0.2
A32: 4 | B32: Preparar y entregar respuesta de dictamen | C32: =20/60 -> 0.3333333333 | E32: Total | F32: =SUM(F28:F31) -> 1.29
A33: 5 | B33: SUMATORIA ACTIVIDADES | C33: =SUM(C29:C32) -> 2
A38: TRÁMITE: | B38: Emisión de dictamen sobre disponibilidad de recursos financieros para empresas públicas y gobiernos autónomos descentralizados | E38: COSTO DE RECURSOS POR HORA
A39: NO. | B39: ACTIVIDAD | C39: TIEMPO (HORAS) | E39: Uso de internet | F39: 0.5
A40: 1 | B40: Recibir y revisar información de requisitos | C40: =20/60 -> 0.3333333333 | E40: Tarifa de luz | F40: 0.09
A41: 2 | B41: preparar respuesta de información | C41: =20/60 -> 0.3333333333 | E41: Uso de computador | F41: 0.5
A42: 3 | B42: Analizar información habilitante | C42: 1 | E42: Uso de Software | F42: 0.2
A43: 4 | B43: Preparar y entregar respuesta de dictamen | C43: =20/60 -> 0.3333333333 | E43: Total | F43: =SUM(F39:F42) -> 1.29
B44: SUMATORIA ACTIVIDADES | C44: =SUM(C40:C43) -> 2
A48: TRÁMITE: | B48: Emisión de dictamen de no afectación presupuestaria para instrumentos administrativos de las entidades del Resto del Sector Público | E48: COSTO DE RECURSOS POR HORA
A49: NO. | B49: ACTIVIDAD | C49: TIEMPO (HORAS) | E49: Uso de internet | F49: 0.5
A50: 1 | B50: Recibir y revisar información de requisitos | C50: =20/60 -> 0.3333333333 | E50: Tarifa de luz | F50: 0.09
A51: 2 | B51: preparar respuesta de información | C51: =20/60 -> 0.3333333333 | E51: Uso de computador | F51: 0.5
A52: 3 | B52: Analizar información habilitante | C52: 1 | E52: Uso de Software | F52: 0.2
A53: 4 | B53: Preparar y entregar respuesta de dictamen | C53: =20/60 -> 0.3333333333 | E53: Total | F53: =SUM(F49:F52) -> 1.29
B54: SUMATORIA ACTIVIDADES | C54: =SUM(C50:C53) -> 2
A58: TRÁMITE: | B58: Reconocimiento de directiva de las organizaciones sociales | E58: COSTO DE RECURSOS POR HORA
A59: NO. | B59: ACTIVIDAD | C59: TIEMPO (HORAS) | E59: Uso de internet | F59: 0.5
A60: 1 | B60: Recibir y revisar información | C60: =20/60 -> 0.3333333333 | E60: Tarifa de luz | F60: 0.09
A61: 2 | B61: Preparar y enviar documento de inicio del trámite | C61: =20/60 -> 0.3333333333 | E61: Uso de computador | F61: 0.5
A62: 3 | B62: Analizar legalidad de información | C62: 1 | E62: Uso de Software | F62: 0.2
A63: 4 | B63: Preparar y enviar respuesta | C63: =20/60 -> 0.3333333333 | E63: impresiones | F63: 0.2
B64: SUMATORIA ACTIVIDADES | C64: =SUM(C60:C63) -> 2 | E64: Total | F64: =SUM(F59:F63) -> 1.49
A67: TRAMITE | B67: Inclusión y/o exclusión de miembros de las organizaciones sociales. | E67: COSTO DE RECURSOS POR HORA
A68: NO. | B68: ACTIVIDAD | C68: TIEMPO (HORAS) | E68: Uso de internet | F68: 0.5
A69: 1 | B69: Recibir y revisar información | C69: =20/60 -> 0.3333333333 | E69: Tarifa de luz | F69: 0.09
A70: 2 | B70: Preparar y enviar documento de inicio del trámite | C70: =20/60 -> 0.3333333333 | E70: Uso de computador | F70: 0.2
A71: 3 | B71: Analizar legalidad de información | C71: 1 | E71: Uso de Software | F71: 0.2
A72: 4 | B72: Preparar y enviar respuesta | C72: =20/60 -> 0.3333333333 | E72: impresiones | F72: 0.5
B73: SUMATORIA ACTIVIDADES | C73: =SUM(C69:C72) -> 2 | E73: Total | F73: =SUM(F68:F72) -> 1.49
A76: TRAMITE: | B76: Reconocimiento de la persona jurídica y estatuto de las organizaciones sociales. | E76: COSTO DE RECURSOS POR HORA
A77: NO. | B77: ACTIVIDAD | C77: TIEMPO (HORAS) | E77: Uso de internet | F77: 0.5
A78: 1 | B78: Recibir y revisar información | C78: =20/60 -> 0.3333333333 | E78: Tarifa de luz | F78: 0.09
A79: 2 | B79: Analizar el proyecto del Estatuto | C79: 1 | E79: Uso de computador | F79: 0.5
A80: 3 | B80: Preparar y enviar respuesta | C80: =20/60 -> 0.3333333333 | E80: Uso de Software | F80: 0.2
B81: SUMATORIA ACTIVIDADES | C81: =SUM(C78:C80) -> 1.666666667 | E81: impresiones | F81: 0.5
E82: Total | F82: =SUM(F77:F81) -> 1.79
A85: TRAMITE: | B85: Reformas del estatuto de las organizaciones sociales | E85: COSTO DE RECURSOS POR HORA
A86: NO. | B86: ACTIVIDAD | C86: TIEMPO (HORAS) | E86: Uso de internet | F86: 0.5
A87: 1 | B87: Recibir y revisar información | C87: =20/60 -> 0.3333333333 | E87: Tarifa de luz | F87: 0.09
A88: 2 | B88: Analizar las reformas al estatuto | C88: 1 | E88: Uso de computador | F88: 0.5
A89: 3 | B89: Preparar y enviar respuesta | C89: =20/60 -> 0.3333333333 | E89: Uso de Software | F89: 0.2
B90: SUMATORIA ACTIVIDADES | C90: =SUM(C87:C89) -> 1.666666667 | E90: impresiones | F90: 0.5
E91: Total | F91: =SUM(F86:F90) -> 1.79
A94: TRAMITE: | B94: Disolución de la personería jurídica de las organizaciones sociales | E94: COSTO DE RECURSOS POR HORA
A95: NO. | B95: ACTIVIDAD | C95: TIEMPO (HORAS) | E95: Uso de internet | F95: 0.5
A96: 1 | B96: Recibir y revisar información | C96: =20/60 -> 0.3333333333 | E96: Tarifa de luz | F96: 0.09
A97: 2 | B97: Analizar la legalidad del acta de disolución | C97: 1 | E97: Uso de computador | F97: 0.5
A98: 3 | B98: Preparar y enviar respuesta | C98: =20/60 -> 0.3333333333 | E98: Uso de Software | F98: 0.2
B99: SUMATORIA ACTIVIDADES | C99: =SUM(C96:C98) -> 1.666666667 | E99: impresiones | F99: 0.5
E100: Total | F100: =SUM(F95:F99) -> 1.79
A102: TRÁMITE: | B102: Autorización para la creación, modificación o eliminación de tasas de las instituciones del Presupuesto General del Estado
A103: NO. | B103: ACTIVIDAD | C103: TIEMPO (HORAS)
A104: 1 | B104: Comunicar a la entidad la normativa respectiva y documentos habilitantes. | C104: 4
A105: 2 | B105: Revisar la información proporcionada por la/s entidad/es. | C105: 8
A106: 3 | B106: Dar asesoría y emitir observaciones de los documentos revisados. | C106: 4
A107: 4 | B107: Elaborar cuadro resumen y/o comparativo de precios. | C107: 10
A108: 5 | B108: Elaborar cuadro de ingresos Fuente 002 y gastos totales. | C108: 10
A109: 6 | B109: Elaborar cuadro de impacto presupuestario. | C109: 10
A110: 7 | B110: Elaborar y aprobar informe técnico de fijación de precios. | C110: 28
A111: 8 | B111: Elaborar, aprobar y remitir memorando a la Coordinación Jurídica solicitando pronunciamiento y elaboración de dictamen institucional. | C111: 4
A112: 9 | B112: Verificar la emisión de oficio de dictamen institucional. | C112: 2
B113: SUMATORIA ACTIVIDADES | C113: 80
A116: TRÁMITE: | B116: Autorización para la creación, modificación, emisión o eliminación de especies fiscales de las instituciones del Presupuesto General del Estado.
A117: NO. | B117: ACTIVIDAD | C117: TIEMPO (HORAS)
A118: 1 | B118: Comunicar a la entidad la normativa respectiva y documentos habilitantes. | C118: 4
A119: 2 | B119: Revisar la información proporcionada por la/s entidad/es. | C119: 8
A120: 3 | B120: Dar asesoría y emitir observaciones de los documentos revisados. | C120: 4
A121: 4 | B121: Elaborar cuadro resumen y/o comparativo de precios. | C121: 10
A122: 5 | B122: Elaborar cuadro de ingresos Fuente 002 y gastos totales. | C122: 10
A123: 6 | B123: Elaborar cuadro de impacto presupuestario. | C123: 10
A124: 7 | B124: Elaborar y aprobar informe técnico de fijación de precios. | C124: 28
A125: 8 | B125: Elaborar, aprobar y remitir memorando a la Coordinación Jurídica solicitando pronunciamiento y elaboración de dictamen institucional. | C125: 4
A126: 9 | B126: Verificar la emisión de oficio de dictamen institucional. | C126: 2
B127: SUMATORIA ACTIVIDADES | C127: 80
A130: TRÁMITE: | B130: Autorización de fideicomisos públicos.
A131: NO. | B131: ACTIVIDAD | C131: TIEMPO (HORAS)
A132: 1 | B132: Recibir, revisar y reasignar el requerimiento relacionado a las autorizaciones de fideicomisos. | C132: 2
A133: 2 | B133: Analizar el requerimiento y el anexo adjunto de ser necesario | C133: 80
A134: 3 | B134: Enviar a la entidad correspondiente el oficio de respuesta en el que se indica que el requerimiento no procede. | C134: 4
A135: 4 | B135: Solicitar información adicional a la entidad requirente del Sector Público No Financiero. | C135: 8
A136: 5 | B136: Enviar memorando de solicitud de análisis de sostenibilidad financiera. | C136: 4
A137: 6 | B137: Revisar y remitir el memorando de solicitud de análisis de sostenibilidad financiera. | C137: 8
A138: 7 | B138: Analizar la información recibida para el análisis de sostenibilidad financiera. | C138: 80
A139: 8 | B139: Realizar el de sostenibilidad financiera de acuerdo a la Entidad fuera del PGE requirente | C139: 30
A140: 9 | B140: Aprobar el de sostenibilidad financiera de acuerdo a la Entidad fuera del PGE requirente | C140: 80
A141: 10 | B141: Enviar el informe técnico de fideicomiso a la Coordinación General Jurídica. | C141: 80
A142: 11 | B142: Enviar el informe técnico de fideicomiso a la Coordinación General Jurídica. | C142: 8
A143: 12 | B143: Realizar análisis jurídico y clasificación del requerimiento. | C143: 8
A144: 13 | B144: Revisar y analizar los documentos de soporte que permitan elaborar los informes. | C144: 80
A145: 14 | B145: Subsumir el hecho con la norma legal.(búsqueda de norma aplicable al caso). | C145: 40
A146: 15 | B146: Elaborar proyecto de informe jurídico para fidecomisos | C146: 40
A147: 16 | B147: Enviar el documento de autorización o no de fideicomisos a el/la Ministro/a de Economía y Finanzas. | C147: 40
A148: 17 | B148: Enviar el documento de autorización o no de fideicomiso a la entidad requirente del Sector Público No Financiero. | C148: 8
B149: SUMATORIA ACTIVIDADES | C149: 600
A152: TRÁMITE: | B152: Validación de fondos
A153: NO. | B153: ACTIVIDAD | C153: TIEMPO (HORAS)
A154: 1 | B154: Recibir el requerimiento. | C154: 4
A155: 2 | B155: Revisar la documentación. | C155: 16
A156: 3 | B156: Revisar en el sistema la parametrización. | C156: 4
A157: 4 | B157: Validar el fondo en el sistema | C157: 8
B158: SUMATORIA ACTIVIDADES | C158: 32
A161: TRÁMITE: | B161: Autorización de fideicomisos públicos.
A162: NO. | B162: ACTIVIDAD | C162: TIEMPO (HORAS)
A163: 1 | B163: Solicitar a la SCG las cuentas contables a ser parametrizadas en el módulo de extinción de deudas, a través de memorando de las instituciones que utilicen la herramienta oficial financiera | C163: 8
A164: 2 | B164: Preparar y remitir las cuentas contables a ser parametrizadas | C164: 80 | L164: =8*20*18 -> 2880 | M164: Tiempo - ficha del servicio
A165: 3 | B165: Calificar la participación de las entidades y organismos del sector público | C165: 26 | L165: =8*80 -> 640 | M165: Tiempo - administrado (preparación de documentación)
A166: 4 | B166: Comunicar a las entidades que utilizan la herramienta informática para la administración de los recursos públicos la obligación de intervenir en el sistema de extinción de deudas | C166: 8 | L166: =+L164-L165 -> 2240
A167: 5 | B167: Determinar en los EEFF las deudas reciprocas con otras entidades del sector público que no realicen las transacciones a través de la herramienta oficial | C167: 640
A168: 6 | B168: Comunicar a la STN el interés de acogerse a un proceso de extinción de deudas, adjuntando para el efecto el acta de conciliación de deudas y registros contables | C168: 8
A169: 7 | B169: Abrir expediente de la entidad sobre el proceso de extinción de deudas | C169: 600
A170: 8 | B170: Preparar memorando solicitando la certificación de subrogación de deuda a la Subsecretaría de Financiamiento Público | C170: 8
A171: 9 | B171: Verificar que se refleje en los Estados Financieros, las cuentas contables a intervenir en el proceso de extinción de deudas | C171: 8
A172: 10 | B172: Estructurar el proceso de extinción, detallando los participantes, montos a ser cruzados entre cada uno de ellos | C172: 300
A173: 11 | B173: Solicitar la elaboración del convenio de extinción de deudas a la Coordinación General Jurídica, a través de memorando | C173: 8
A174: 12 | B174: Coordinar la suscripción del convenio de extinción con las entidades intervinientes | C174: 500
A175: 13 | B175: Recibir memorando informando la culminación del proceso | C175: 8
A176: 14 | B176: Autorizar el cierre del expediente | C176: 8
A177: 15 | B177: Cerrar el expediente de extinción de deudas | C177: 30
B178: SUMATORIA ACTIVIDADES | C178: =SUM(C163:C177) -> 2240
A181: TRÁMITE: | B181: Autorización para inversiones financieras de entidades del Sector Público no Financiero
A182: NO. | B182: ACTIVIDAD | C182: TIEMPO (HORAS)
A183: 1 | B183: Revisar y analizar el requerimiento institucional | C183: 20
A184: 2 | B184: Elaborar el oficio de solicitud de documentación para la contratación de endeudamiento público | C184: 8
A185: 3 | B185: Revisar y remitir el oficio de solicitud de documentación para la contratación del endeudamiento público a la Entidad fuera del PGE requirente | C185: 4
A186: 4 | B186: Elaborar el memorando de solicitud de análisis de capacidad de pago de la Entidad requirente | C186: 8
A187: 5 | B187: Revisar y remitir el memorando de solicitud de análisis de capacidad de pago | C187: 4
A188: 6 | B188: Analizar la información recibida para el análisis de capacidad de pago. | C188: 20
A189: 7 | B189: Realizar el análisis de capacidad de pago de acuerdo a la Entidad fuera del PGE requirente | C189: 80
A190: 8 | B190: Aprobar el análisis de capacidad de pago de acuerdo a la Entidad fuera del PGE requirente | C190: 20
A191: 9 | B191: Analizar la documentación | C191: 80
A192: 10 | B192: Elaborar y remitir el memorando de solicitud de pronunciamiento legal del contrato del crédito | C192: 8
A193: 11 | B193: Elaborar el informe que contiene los términos y condiciones financieras del crédito ( se anexa el memorando dirigido a la Coordinación General Jurídica cuando el monto del crédito es menor al 0,15% del PGE o el oficio de convocatoria al Comité de Deuda y Financiamiento (cuando el monto del crédito es mayor al 0,15% del PGE) | C193: 80
A194: 12 | B194: Solicitar la elaboración de la Resolución Ministerial a la Coordinación General Jurídica (cuando el monto del crédito es menor al 0,15% del PGE) o suscribir el oficio de convocatoria del Comité de Deuda y Financiamiento (cuando el monto del crédito es mayor al 0,15% del PGE) | C194: 8
A195: 13 | B195: Suscribir la Resolución emitida por el/la Ministro/a de Economía y Finanzas o Acta Resolutiva emitida por el Comité de Deuda y Financiamiento, dependiendo el monto del crédito (en caso de que se autorice la contratación del crédito) | C195: 180
A196: 14 | B196: Elaborar y remitir el oficio de comunicación de aprobación de la contratación del crédito | C196: 8
A197: 15 | B197: Registrar el contrato del crédito en el Libro de Deuda Pública de la Subsecretaría del Crédito | C197: 8
A198: 16 | B198: Archivar el expediente del contrato del crédito (en caso de que no se autorice la contratación) | C198: 8
A199: 17 | B199: Elaborar y remitir el oficio de comunicación de no autorización de la contratación del crédito | C199: 8
A200: 18 | B200: Elaborar y remitir el oficio de comunicación de no autorización de la contratación del crédito | C200: 8
B202: SUMATORIA ACTIVIDADES | C202: 560
A205: TRÁMITE: | B205: Otorgamiento de garantia soberana
A206: NO. | B206: ACTIVIDAD | C206: TIEMPO (HORAS)
A207: 1 | B207: Reasignar la solicitud de garantía soberana | C207: 1
A208: 2 | B208: Elaborar y remitir el memorando de solicitud de análisis de capacidad de pago | C208: 8
A209: 3 | B209: Recibir el memorando del resultado de análisis de capacidad de pago | C209: 4
A210: 4 | B210: Analizar la información recibida para el análisis de capacidad de pago. | C210: 10
A211: 5 | B211: Realizar el análisis de capacidad de pago de acuerdo a la Entidad fuera del PGE requirente | C211: 60
A212: 6 | B212: Aprobar el análisis de capacidad de pago de acuerdo a la Entidad fuera del PGE requirente | C212: 10
A213: 7 | B213: Elaborar oficio indicando la capacidad de pago (favorable o desfavorable) y/o requerimiento de documentación para otorgar garantía | C213: 8
A214: 8 | B214: Elaborar y remitir memorando de análisis legal del convenio de garantía, de autorización respecto al arbitraje internacional y ley gobernante enviado por la Procuraduría General del Estado y autorización del MEF sobre arbitraje internacional | C214: 8
A215: 9 | B215: Ejecutar el proceso: Instrumentación de solicitudes dirigidas al Procurador General del Estado o el proceso: Participación y Asesoramiento en las Negociaciones de Endeudamiento Público Externo, de la Coordinación General Jurídica | C215: 160
A216: 10 | B216: Elaborar informe para aprobación de garantía y solicitud de resolución para la Coordinación General Jurídica | C216: 120
A217: 11 | B217: Aprobar emisión de garantía soberana | C217: 32
A218: 12 | B218: Recibir resolución | C218: 4
A219: 13 | B219: Elaborar y remitir el informe técnico de aprobación de garantía | C219: 50
A220: 14 | B220: Revisar el informe y convocar al Comité de Deuda y Financiamiento | C220: 16
A221: 15 | B221: Analizar la documentación e información respecto al convenio de crédito y garantía | C221: 16
A222: 16 | B222: Revisar y enviar Acta Resolutiva al Prestamista a la entidad Prestataria | C222: 8
A223: 17 | B223: Suscribir Convenios de Crédito y Garantía | C223: 8
A224: 18 | B224: Gestionar las firmas para los Convenios de Crédito y Garantía | C224: 25
A225: 19 | B225: Registrar en el Libro de Deuda Pública los Convenios de Garantía y Crédito suscritos | C225: 8
A226: 20 | B226: Elaborar y remitir memorando de solicitud de opinión legal sobre lo actuado y elaboración de Convenio de restitución de valores | C226: 8
A227: 21 | B227: Revisar opinión legal sobre lo actuado y Convenio de restitución de valores | C227: 180
A228: 22 | B228: Suscribir el Convenio de restitución de valores | C228: 24
A229: 23 | B229: Suscribir el Convenio de agencia fiscal | C229: 24
A230: 24 | B230: Archivar el Expediente del otorgamiento de Garantía Soberana | C230: 8
B232: SUMATORIA ACTIVIDADES | C232: =SUM(C207:C231) -> 800
A235: TRÁMITE: | B235: Autorización de apertura de cuentas operativas de las instituciones del sector público, exceptuando los de la seguridad social. | E235: Recursos | F235: Costo por hora | G235: Uso de recursos por hora | H235: Costo consumo por trámite
A236: NO. | B236: ACTIVIDAD | C236: TIEMPO (HORAS) | E236: Luz eléctrica (0,09 KW/hora) | F236: 0.09 | G236: 6 | H236: 0.54
A237: 1 | B237: Entregar información de los requisitos para acceder al trámite. | C237: 0.3333333333 | E237: Internet (0,50 centavos/hora) | F237: 0.5 | G237: 3 | H237: 1.5
A238: 2 | B238: Recibir y revisar la documentación habilitante | C238: 0.01666666667 | E238: Uso de computador (0, 30 centavos / hora) | F238: 0.3 | G238: 6 | H238: 1.8
A239: 3 | B239: Analizar el requerimiento | C239: 3 | E239: Uso de software (0, 15 centavos /hora) | F239: 0.15 | G239: 4 | H239: 0.6
A240: 4 | B240: Autorizar la apertura de cuentas de acuerdo con lo solicitado por el usuario. | C240: 4 | E240: Impresiones (0,04 centavos x hoja) | F240: 0.04 | G240: 0 | H240: 0
A241: 5 | B241: Elaborar oficio de autorización de apertura de cuentas de acuerdo con lo solicitado por el usuario. | C241: 1 | E241: Copias (0,02 centavos x hoja) | F241: 0.02 | G241: 0 | H241: 0
A242: 6 | B242: Remitir oficio de autorización de apertura de cuentas de acuerdo con lo solicitado por el usuario. | C242: 0.4166666667 | E242: Total recursos | H242: 4.44
... 437 more rows

Sheet TIEMPO DE RESPUESTA
A1: PRIORIZACIÓN DE TRÁMITES ADMINISTRATIVOS
A2: TIEMPO DE RESPUESTA
A4: IDENTIFICADOR | B4: TRÁMITE | C4: TIEMPO RESPUESTA (horas laborables) | D4: PUNTUACIÓN
A5: MINFIN-004-01-02 | B5: Actualización del catálogo de organismos y correlativos (préstamos/donaciones) para entidades que conforman el Presupuesto General del Estado. | C5: 16 | D5: 0
A6: MINFIN-003-01-04 | B6: Actualización del Catálogo General de Administración de Fondos para entidades del sector público no financiero | C6: 8 | D6: 0
A7: MINFIN-006-01-01 | B7: Autorización para emisión y colocación de títulos - valores internacionales de entidades públicas fuera del Presupuesto General del Estado. | C7: 720 | D7: 30
A8: MINFIN-008-01-02 | B8: Autorización para la creación, modificación, emisión o eliminación de especies fiscales de las instituciones del Presupuesto General del Estado. | C8: 160 | D8: 30
A9: MEF-020-05-01 | B9: Disolución de la personería jurídica de las organizaciones sociales | C9: 120 | D9: 30
A10: MEF-019-02-03 | B10: Emisión de dictamen de no afectación presupuestaria para instrumentos administrativos de las entidades del Resto del Sector Público | C10: 160 | D10: 30
A11: MEF-019-02-02 | B11: Emisión de dictamen sobre disponibilidad de recursos financieros para empresas públicas y gobiernos autónomos descentralizados | C11: 240 | D11: 30
A12: MINFIN-018-01-01 | B12: Implantación de las herramientas transaccionales del Sistema Integrado de las Finanzas Públicas en entidades fuera del Presupuesto General del Estado. | C12: 720 | D12: 30
A13: MEF-020-02-01 | B13: Inclusión y/o exclusión de miembros de las organizaciones sociales. | C13: 40 | D13: 0
A14: MEF-020-01-01 | B14: Reconocimiento de directiva de las organizaciones sociales | C14: 40 | D14: 0
A15: MEF-020-03-01 | B15: Reconocimiento de la persona jurídica y estatuto de las organizaciones sociales. | C15: 120 | D15: 30
A16: MEF-020-04-01 | B16: Reformas del estatuto de las organizaciones sociales | C16: 120 | D16: 30
A17: MINFIN-015-01-03 | B17: Solicitud de Información de Gestión del Sistema Nacional de las Finanzas Públicas, automatizada a través de las herramientas de gestión administrativa financiera | C17: 0.666667 | D17: 0
A18: MEF-005-02-01 | B18: Taller presencial para el uso de las herramientas informáticas de las Finanzas Públicas dirigido a servidores públicos que trabajen en las entidades que conforman el Presupuesto General del Estado. | C18: 48 | D18: 30
A19: MINFIN-003-01-01 | B19: Actualización del Plan de Cuentas Contables para entidades del sector público no financiero | C19: 240 | D19: 30
A20: MINFIN-009-02-01 | B20: Extinción de deuda entre entidades del Sector Público. | C20: 1920 | D20: 30
A21: MINFIN-013-03-03 | B21: Autorización de cierre de cuentas monetarias por cierre de Entidad que no pertenecen al Presupuesto General del Estado. | C21: 32 | D21: 0
A22: MINFIN-013-01-04 | B22: Autorización de apertura de cuentas de fondos de terceros para las instituciones del sector público, exceptuando las de la seguridad social. | C22: 56 | D22: 30
A23: MINFIN-012-01-01 | B23: Otorgamiento de garantía soberana a instituciones fuera del Presupuesto General del Estado | C23: 960 | D23: 30
A24: MINFIN-003-01-06 | B24: Actualización del Catálogo de Retenciones y descuentos a beneficiarios para entidades del sector público no financiero | C24: 24 | D24: 0
A25: MINFIN-013-01-05 | B25: Autorización de apertura de cuentas de Fideicomiso para las instituciones del sector público, financieras públicas, exceptuando los de la seguridad social. | C25: 56 | D25: 30
A26: MINFIN-013-01-06 | B26: Autorización de apertura de cuentas en el exterior o por excepción para las instituciones del sector público no financiero, exceptuando las de la seguridad social. | C26: 200 | D26: 30
A27: MINFIN-007-01-01 | B27: Autorización para contratación de endeudamiento público para las instituciones fuera del Presupuesto General del Estado. | C27: 960 | D27: 30
A28: MINFIN-004-02-01 | B28: Actualización del Clasificador presupuestario de ingresos y egresos (gastos) del Sector Público | C28: 320 | D28: 30
A29: MINFIN-009-01-01 | B29: Autorización de fideicomisos públicos. | C29: 720 | D29: 30
A30: MINFIN-010-01-01 | B30: Autorización para inversiones financieras de entidades del Sector Público no Financiero | C30: 160 | D30: 30
A31: MINFIN-002-01-04 | B31: Asignación de equipos biométricos a funcionarios autorizadores de pagos de las entidades del Sector Público. | C31: 8 | D31: 0
A32: MINFIN-013-02-01 | B32: Autorización de actualización de la denominación de las cuentas de las instituciones del sector público, exceptuando las de la seguridad social. | C32: 56 | D32: 30
A33: MINFIN-017-01-01 | B33: Habilitación de la opción para la carga de contratos de obras y/o servicios de años anteriores para las entidades del Presupuesto General del Estado y Empresas Públicas que reciben transferencias del Presupuesto General del Estado | C33: 24 | D33: 0
A34: MINFIN-005-01-01 | B34: Capacitación virtual para el uso de las herramientas informáticas de las Finanzas Públicas dirigido a servidores públicos que trabajen en las entidades que conforman el Presupuesto General del Estado. | C34: 120 | D34: 30
A35: MINFIN-002-01-08 | B35: Reposición de un nuevo equipo biométrico (dongle y/o lector) en caso de pérdida, robo, hurto y/o daño por parte de los funcionarios autorizadores de pagos de las entidades del Sector Público. | C35: 8 | D35: 0
A36: MINFIN-003-01-05 | B36: Actualización del Catálogo General de asientos tipo para entidades del sector público no financiero | C36: 24 | D36: 0
A37: MINFIN-013-03-02 | B37: Autorización de cierre de cuentas monetarias por cierre de entidad que pertenecen al Presupuesto General del Estado. | C37: 56 | D37: 30
A38: MINFIN-002-01-07 | B38: Desactivación o baja del computador registrado para autorización de pagos mediante el uso del equipo biométrico por pérdida, robo o daño. | C38: 8 | D38: 0
A39: MINFIN-013-01-03 | B39: Autorización de apertura de cuentas de crédito para las instituciones del sector público, exceptuando los de la seguridad social. | C39: 120 | D39: 30
A40: MINFIN-001-01-03 | B40: Creación de usuarios especiales de consulta para entidades de control | C40: 8 | D40: 0
A41: MINFIN-013-03-01 | B41: Autorización de cierre de cuentas monetarias por terminación del objeto de la cuenta correspondiente a entidades del sector público exceptuando las de la seguridad social. | C41: 56 | D41: 30
A42: MINFIN-008-01-01 | B42: Autorización para la creación, modificación o eliminación de tasas de las instituciones del Presupuesto General del Estado | C42: 160 | D42: 30
A43: MEF-019-02-01 | B43: Emisión de dictamen presupuestario de las entidades del Presupuesto General del Estado | C43: 120 | D43: 30
A44: MINFIN-002-01-06 | B44: Devolución del equipo biométrico por fusión, absorción, cambio de denominación, cambio de modelo de gestión administrativa financiera o cierre de las entidades del Sector Público. | C44: 8 | D44: 0
A45: MINFIN-015-01-02 | B45: Información publicada sobre las finanzas públicas | C45: 0.5 | D45: 0
A46: MINFIN-002-01-02 | B46: Actualización de funcionarios autorizadores de pagos de las Entidades del Sector Público en el Sistema Biométrico de pagos. | C46: 8 | D46: 0
A47: MINFIN-013-01-01 | B47: Autorización de apertura de cuentas operativas de las instituciones del sector público, exceptuando los de la seguridad social. | C47: 56 | D47: 30
A48: MINFIN-013-01-02 | B48: Autorización de apertura de cuentas de donación para las instituciones del sector público, exceptuando los de la seguridad social. | C48: 56 | D48: 30
A49: MINFIN-003-01-02 | B49: Actualización del Catálogo General de Bienes para las entidades del sector público no financiero | C49: 48 | D49: 30
A50: MINFIN-001-01-01 | B50: Creación de usuarios administradores financieros/informáticos de las Entidades del Sector Público no Financiero | C50: 8 | D50: 0
A51: MEF-019-01-01 | B51: Emisión de certificaciones presupuestarias anuales y/o plurianuales de la entidades del Presupuesto General del Estado. | C51: 120 | D51: 30
A52: MINFIN-002-01-01 | B52: Enrolamiento en el Sistema Biométrico de pagos para funcionarios autorizadores de pagos de las entidades del Sector Público. | C52: 0.33 | D52: 0
A53: MINFIN-001-01-02 | B53: Creación de usuarios de Gobiernos Autónomos Descentralizados y Empresas Públicas. | C53: 8 | D53: 0
A54: MINFIN-001-02-01 | B54: Reseteo y Activación de Contraseñas | C54: 8 | D54: 0
A55: MINFIN-003-01-03 | B55: Actualización del Catálogo General de Existencias para el sector público no financiero | C55: 48 | D55: 30
A56: MINFIN-009-03-01 | B56: Validación de fondos | C56: 40 | D56: 0
A57: MINFIN-015-01-01 | B57: Solicitud oficial sobre entrega de información de las finanzas públicas | C57: 120 | D57: 30
A58: MINFIN-004-01-01 | B58: Actualización del catálogo de instituciones y entidades operativas desconcentradas del Sector Público No Financiero | C58: 24 | D58: 0
A59: MINFIN-002-01-03 | B59: Desactivación y activación de funcionarios autorizadores de pagos de las entidades del Sector Público enrolados por ausencia temporal o permanente. | C59: 8 | D59: 0
A60: MINFIN-011-01-01 | B60: Habilitación de registros contables para las entidades que transaccionan en el sistema e-SIGEF a nivel nacional. | C60: 32 | D60: 0
A61: MEF-016-02-01 | B61: Asistencia técnica, conceptual y normativa de las Finanzas Públicas a través del canal telefónico. | C61: 0.28 | D61: 0
A62: MINFIN-016-01-01 | B62: Asistencia técnica, conceptual y normativa de las Finanzas Públicas de forma presencial. | C62: 0.27 | D62: 0
A63: MEF-016-03-01 | B63: Asistencia técnica, conceptual y normativa de las Finanzas Públicas mediante correo electrónico u oficio. | C63: 48 | D63: 30
A64: MINFIN-014-03-01 | B64: Aprobación de modificaciones a los distributivos de remuneraciones mensuales unificadas institucionales, elaboradas por las entidades que forman parte del Presupuesto General del Estado | C64: 16 | D64: 0
A65: MINFIN-014-02-01 | B65: Aprobación de reprogramaciones financieras elaboradas por las entidades que forman parte del Presupuesto General del Estado. | C65: 24 | D65: 0
A66: MINFIN-014-01-01 | B66: Aprobación de modificaciones presupuestarias para las entidades que conforman el Presupuesto General del Estado | C66: 24 | D66: 0

Sheet CANAL ATENCIÓN
A1: PRIORIZACIÓN DE TRÁMITES ADMINISTRATIVOS
A2: CANAL DE ATENCIÓN
I3: Totalmente en Línea | L3: 0
A4: IDENTIFICADOR | B4: TRÁMITE | C4: CANAL ATENCIÓN | D4: PUNTUACIÓN | I4: No se completa totalmente en línea. | L4: 10
A5: MINFIN-004-01-02 | B5: Actualización del catálogo de organismos y correlativos (préstamos/donaciones) para entidades que conforman el Presupuesto General del Estado. | C5: No se completa totalmente en línea. | D5: =IF(ISBLANK(C5),"",IF(C5="Totalmente en línea",0,IF(C5="Inicia en línea",6,10))) -> 10
A6: MINFIN-003-01-04 | B6: Actualización del Catálogo General de Administración de Fondos para entidades del sector público no financiero | C6: No se completa totalmente en línea. | D6: =IF(ISBLANK(C6),"",IF(C6="Totalmente en línea",0,IF(C6="Inicia en línea",6,10))) -> 10
A7: MINFIN-006-01-01 | B7: Autorización para emisión y colocación de títulos - valores internacionales de entidades públicas fuera del Presupuesto General del Estado. | C7: No se completa totalmente en línea. | D7: 10
A8: MINFIN-008-01-02 | B8: Autorización para la creación, modificación, emisión o eliminación de especies fiscales de las instituciones del Presupuesto General del Estado. | C8: No se completa totalmente en línea. | D8: 10
A9: MEF-020-05-01 | B9: Disolución de la personería jurídica de las organizaciones sociales | C9: No se completa totalmente en línea. | D9: 10
A10: MEF-019-02-03 | B10: Emisión de dictamen de no afectación presupuestaria para instrumentos administrativos de las entidades del Resto del Sector Público | C10: No se completa totalmente en línea. | D10: 10
A11: MEF-019-02-02 | B11: Emisión de dictamen sobre disponibilidad de recursos financieros para empresas públicas y gobiernos autónomos descentralizados | C11: No se completa totalmente en línea. | D11: 10
A12: MINFIN-018-01-01 | B12: Implantación de las herramientas transaccionales del Sistema Integrado de las Finanzas Públicas en entidades fuera del Presupuesto General del Estado. | C12: No se completa totalmente en línea. | D12: 10
A13: MEF-020-02-01 | B13: Inclusión y/o exclusión de miembros de las organizaciones sociales. | C13: No se completa totalmente en línea. | D13: 10
A14: MEF-020-01-01 | B14: Reconocimiento de directiva de las organizaciones sociales | C14: No se completa totalmente en línea. | D14: 10
A15: MEF-020-03-01 | B15: Reconocimiento de la persona jurídica y estatuto de las organizaciones sociales. | C15: No se completa totalmente en línea. | D15: 10
A16: MEF-020-04-01 | B16: Reformas del estatuto de las organizaciones sociales | C16: No se completa totalmente en línea. | D16: 10
A17: MINFIN-015-01-03 | B17: Solicitud de Información de Gestión del Sistema Nacional de las Finanzas Públicas, automatizada a través de las herramientas de gestión administrativa financiera | C17: No se completa totalmente en línea. | D17: 10
A18: MEF-005-02-01 | B18: Taller presencial para el uso de las herramientas informáticas de las Finanzas Públicas dirigido a servidores públicos que trabajen en las entidades que conforman el Presupuesto General del Estado. | C18: No se completa totalmente en línea. | D18: 10
A19: MINFIN-003-01-01 | B19: Actualización del Plan de Cuentas Contables para entidades del sector público no financiero | C19: No se completa totalmente en línea. | D19: 10
A20: MINFIN-009-02-01 | B20: Extinción de deuda entre entidades del Sector Público. | C20: No se completa totalmente en línea. | D20: 10
A21: MINFIN-013-03-03 | B21: Autorización de cierre de cuentas monetarias por cierre de Entidad que no pertenecen al Presupuesto General del Estado. | C21: No se completa totalmente en línea. | D21: 10
A22: MINFIN-013-01-04 | B22: Autorización de apertura de cuentas de fondos de terceros para las instituciones del sector público, exceptuando las de la seguridad social. | C22: No se completa totalmente en línea. | D22: 10
A23: MINFIN-012-01-01 | B23: Otorgamiento de garantía soberana a instituciones fuera del Presupuesto General del Estado | C23: No se completa totalmente en línea. | D23: 10
A24: MINFIN-003-01-06 | B24: Actualización del Catálogo de Retenciones y descuentos a beneficiarios para entidades del sector público no financiero | C24: No se completa totalmente en línea. | D24: 10
A25: MINFIN-013-01-05 | B25: Autorización de apertura de cuentas de Fideicomiso para las instituciones del sector público, financieras públicas, exceptuando los de la seguridad social. | C25: Totalmente en Línea | D25: 0
A26: MINFIN-013-01-06 | B26: Autorización de apertura de cuentas en el exterior o por excepción para las instituciones del sector público no financiero, exceptuando las de la seguridad social. | C26: No se completa totalmente en línea. | D26: 10
A27: MINFIN-007-01-01 | B27: Autorización para contratación de endeudamiento público para las instituciones fuera del Presupuesto General del Estado. | C27: No se completa totalmente en línea. | D27: 10
A28: MINFIN-004-02-01 | B28: Actualización del Clasificador presupuestario de ingresos y egresos (gastos) del Sector Público | C28: No se completa totalmente en línea. | D28: 10
A29: MINFIN-009-01-01 | B29: Autorización de fideicomisos públicos. | C29: No se completa totalmente en línea. | D29: 10
A30: MINFIN-010-01-01 | B30: Autorización para inversiones financieras de entidades del Sector Público no Financiero | C30: No se completa totalmente en línea. | D30: 10
A31: MINFIN-002-01-04 | B31: Asignación de equipos biométricos a funcionarios autorizadores de pagos de las entidades del Sector Público. | C31: No se completa totalmente en línea. | D31: 10
A32: MINFIN-013-02-01 | B32: Autorización de actualización de la denominación de las cuentas de las instituciones del sector público, exceptuando las de la seguridad social. | C32: No se completa totalmente en línea. | D32: 10
A33: MINFIN-017-01-01 | B33: Habilitación de la opción para la carga de contratos de obras y/o servicios de años anteriores para las entidades del Presupuesto General del Estado y Empresas Públicas que reciben transferencias del Presupuesto General del Estado | C33: No se completa totalmente en línea. | D33: 10
A34: MINFIN-005-01-01 | B34: Capacitación virtual para el uso de las herramientas informáticas de las Finanzas Públicas dirigido a servidores públicos que trabajen en las entidades que conforman el Presupuesto General del Estado. | C34: Totalmente en Línea | D34: 0
A35: MINFIN-002-01-08 | B35: Reposición de un nuevo equipo biométrico (dongle y/o lector) en caso de pérdida, robo, hurto y/o daño por parte de los funcionarios autorizadores de pagos de las entidades del Sector Público. | C35: No se completa totalmente en línea. | D35: 10
A36: MINFIN-003-01-05 | B36: Actualización del Catálogo General de asientos tipo para entidades del sector público no financiero | C36: No se completa totalmente en línea. | D36: 10
A37: MINFIN-013-03-02 | B37: Autorización de cierre de cuentas monetarias por cierre de entidad que pertenecen al Presupuesto General del Estado. | C37: No se completa totalmente en línea. | D37: 10
A38: MINFIN-002-01-07 | B38: Desactivación o baja del computador registrado para autorización de pagos mediante el uso del equipo biométrico por pérdida, robo o daño. | C38: No se completa totalmente en línea. | D38: 10
A39: MINFIN-013-01-03 | B39: Autorización de apertura de cuentas de crédito para las instituciones del sector público, exceptuando los de la seguridad social. | C39: No se completa totalmente en línea. | D39: 10
A40: MINFIN-001-01-03 | B40: Creación de usuarios especiales de consulta para entidades de control | C40: No se completa totalmente en línea. | D40: 10
A41: MINFIN-013-03-01 | B41: Autorización de cierre de cuentas monetarias por terminación del objeto de la cuenta correspondiente a entidades del sector público exceptuando las de la seguridad social. | C41: No se completa totalmente en línea. | D41: 10
A42: MINFIN-008-01-01 | B42: Autorización para la creación, modificación o eliminación de tasas de las instituciones del Presupuesto General del Estado | C42: No se completa totalmente en línea. | D42: 10
A43: MEF-019-02-01 | B43: Emisión de dictamen presupuestario de las entidades del Presupuesto General del Estado | C43: No se completa totalmente en línea. | D43: 10
A44: MINFIN-002-01-06 | B44: Devolución del equipo biométrico por fusión, absorción, cambio de denominación, cambio de modelo de gestión administrativa financiera o cierre de las entidades del Sector Público. | C44: No se completa totalmente en línea. | D44: 10
A45: MINFIN-015-01-02 | B45: Información publicada sobre las finanzas públicas | C45: No se completa totalmente en línea. | D45: 10
A46: MINFIN-002-01-02 | B46: Actualización de funcionarios autorizadores de pagos de las Entidades del Sector Público en el Sistema Biométrico de pagos. | C46: No se completa totalmente en línea. | D46: 10
A47: MINFIN-013-01-01 | B47: Autorización de apertura de cuentas operativas de las instituciones del sector público, exceptuando los de la seguridad social. | C47: No se completa totalmente en línea. | D47: 10
A48: MINFIN-013-01-02 | B48: Autorización de apertura de cuentas de donación para las instituciones del sector público, exceptuando los de la seguridad social. | C48: No se completa totalmente en línea. | D48: 10
A49: MINFIN-003-01-02 | B49: Actualización del Catálogo General de Bienes para las entidades del sector público no financiero | C49: No se completa totalmente en línea. | D49: 10
A50: MINFIN-001-01-01 | B50: Creación de usuarios administradores financieros/informáticos de las Entidades del Sector Público no Financiero | C50: No se completa totalmente en línea. | D50: 10
A51: MEF-019-01-01 | B51: Emisión de certificaciones presupuestarias anuales y/o plurianuales de la entidades del Presupuesto General del Estado. | C51: Totalmente en Línea | D51: 0
A52: MINFIN-002-01-01 | B52: Enrolamiento en el Sistema Biométrico de pagos para funcionarios autorizadores de pagos de las entidades del Sector Público. | C52: Totalmente en Línea | D52: 0
A53: MINFIN-001-01-02 | B53: Creación de usuarios de Gobiernos Autónomos Descentralizados y Empresas Públicas. | C53: No se completa totalmente en línea. | D53: 10
A54: MINFIN-001-02-01 | B54: Reseteo y Activación de Contraseñas | C54: No se completa totalmente en línea. | D54: 10
A55: MINFIN-003-01-03 | B55: Actualización del Catálogo General de Existencias para el sector público no financiero | C55: No se completa totalmente en línea. | D55: 10
A56: MINFIN-009-03-01 | B56: Validación de fondos | C56: No se completa totalmente en línea. | D56: 10
A57: MINFIN-015-01-01 | B57: Solicitud oficial sobre entrega de información de las finanzas públicas | C57: No se completa totalmente en línea. | D57: 10
A58: MINFIN-004-01-01 | B58: Actualización del catálogo de instituciones y entidades operativas desconcentradas del Sector Público No Financiero | C58: No se completa totalmente en línea. | D58: 10
A59: MINFIN-002-01-03 | B59: Desactivación y activación de funcionarios autorizadores de pagos de las entidades del Sector Público enrolados por ausencia temporal o permanente. | C59: No se completa totalmente en línea. | D59: 10
A60: MINFIN-011-01-01 | B60: Habilitación de registros contables para las entidades que transaccionan en el sistema e-SIGEF a nivel nacional. | C60: No se completa totalmente en línea. | D60: 10
A61: MEF-016-02-01 | B61: Asistencia técnica, conceptual y normativa de las Finanzas Públicas a través del canal telefónico. | C61: No se completa totalmente en línea. | D61: 10
A62: MINFIN-016-01-01 | B62: Asistencia técnica, conceptual y normativa de las Finanzas Públicas de forma presencial. | C62: No se completa totalmente en línea. | D62: 10
A63: MEF-016-03-01 | B63: Asistencia técnica, conceptual y normativa de las Finanzas Públicas mediante correo electrónico u oficio. | C63: No se completa totalmente en línea. | D63: 10
A64: MINFIN-014-03-01 | B64: Aprobación de modificaciones a los distributivos de remuneraciones mensuales unificadas institucionales, elaboradas por las entidades que forman parte del Presupuesto General del Estado | C64: No se completa totalmente en línea. | D64: 10
A65: MINFIN-014-02-01 | B65: Aprobación de reprogramaciones financieras elaboradas por las entidades que forman parte del Presupuesto General del Estado. | C65: No se completa totalmente en línea. | D65: 10
A66: MINFIN-014-01-01 | B66: Aprobación de modificaciones presupuestarias para las entidades que conforman el Presupuesto General del Estado | C66: No se completa totalmente en línea. | D66: 10

Sheet RESUMEN
C1: BÁSICOS | H1: ADICIONALES
A2: ID trámite | B2: Nombre del trámite | C2: Demanda | D2: Quejas | E2: Costo para administración | F2: Tiempo de respuesta | G2: Canal de atención | H2: Necesidades ciudadanas | J2: Susceptibilidad a corrupción | L2: Volumen de devoluciones | N2: PUNTAJE TOTAL
H3: Criterio | I3: Puntuación | J3: Criterio | K3: Puntuación | L3: Criterio | M3: Puntuación | U3: demanda | V3: 0 | W3: 3 | X3: 6 | Y3: 10
A4: MINFIN-004-01-02 | B4: Actualización del catálogo de organismos y correlativos (préstamos/donaciones) para entidades que conforman el Presupuesto General del Estado. | C4: 0 | D4: 0 | E4: 10 | F4: 0 | G4: 10 | H4: NO | I4: =IF(H4="SI",5,0) -> 0 | J4: NO | K4: =IF(J4="SI",10,0) -> 0 | L4: NO | M4: =IF(L4="SI",5,0) -> 0 | N4: =SUM(C4:G4,I4,K4,M4) -> 20 | U4: quejas | V4: 0 | W4: 4 | X4: 10
A5: MINFIN-003-01-04 | B5: Actualización del Catálogo General de Administración de Fondos para entidades del sector público no financiero | C5: 0 | D5: 0 | E5: 10 | F5: 0 | G5: 10 | H5: NO | I5: =IF(H5="SI",5,0) -> 0 | J5: NO | K5: =IF(J5="SI",10,0) -> 0 | L5: NO | M5: =IF(L5="SI",5,0) -> 0 | N5: =SUM(C5:G5,I5,K5,M5) -> 20 | U5: cpa | V5: 5 | W5: 10 | X5: 20
A6: MINFIN-006-01-01 | B6: Autorización para emisión y colocación de títulos - valores internacionales de entidades públicas fuera del Presupuesto General del Estado. | C6: 0 | D6: 0 | E6: 5 | F6: 30 | G6: 10 | H6: NO | I6: 0 | J6: NO | K6: 0 | L6: NO | M6: 0 | N6: 45 | U6: tr | V6: 0 | W6: 30
A7: MINFIN-008-01-02 | B7: Autorización para la creación, modificación, emisión o eliminación de especies fiscales de las instituciones del Presupuesto General del Estado. | C7: 0 | D7: 0 | E7: 5 | F7: 30 | G7: 10 | H7: NO | I7: 0 | J7: NO | K7: 0 | L7: NO | M7: 0 | N7: 45 | U7: ca | V7: 0 | W7: 10
A8: MEF-020-05-01 | B8: Disolución de la personería jurídica de las organizaciones sociales | C8: 0 | D8: 0 | E8: 5 | F8: 30 | G8: 10 | H8: NO | I8: 0 | J8: NO | K8: 0 | L8: NO | M8: 0 | N8: 45 | V8: SI | W8: NO
A9: MEF-019-02-03 | B9: Emisión de dictamen de no afectación presupuestaria para instrumentos administrativos de las entidades del Resto del Sector Público | C9: 0 | D9: 0 | E9: 10 | F9: 30 | G9: 10 | H9: NO | I9: 0 | J9: NO | K9: 0 | L9: NO | M9: 0 | N9: 50
A10: MEF-019-02-02 | B10: Emisión de dictamen sobre disponibilidad de recursos financieros para empresas públicas y gobiernos autónomos descentralizados | C10: 0 | D10: 0 | E10: 5 | F10: 30 | G10: 10 | H10: NO | I10: 0 | J10: NO | K10: 0 | L10: NO | M10: 0 | N10: 45
A11: MINFIN-018-01-01 | B11: Implantación de las herramientas transaccionales del Sistema Integrado de las Finanzas Públicas en entidades fuera del Presupuesto General del Estado. | C11: 0 | D11: 0 | E11: 5 | F11: 30 | G11: 10 | H11: NO | I11: 0 | J11: NO | K11: 0 | L11: NO | M11: 0 | N11: 45
A12: MEF-020-02-01 | B12: Inclusión y/o exclusión de miembros de las organizaciones sociales. | C12: 0 | D12: 0 | E12: 5 | F12: 0 | G12: 10 | H12: NO | I12: 0 | J12: NO | K12: 0 | L12: NO | M12: 0 | N12: 15
A13: MEF-020-01-01 | B13: Reconocimiento de directiva de las organizaciones sociales | C13: 0 | D13: 0 | E13: 5 | F13: 0 | G13: 10 | H13: NO | I13: 0 | J13: NO | K13: 0 | L13: NO | M13: 0 | N13: 15
A14: MEF-020-03-01 | B14: Reconocimiento de la persona jurídica y estatuto de las organizaciones sociales. | C14: 0 | D14: 0 | E14: 5 | F14: 30 | G14: 10 | H14: NO | I14: 0 | J14: NO | K14: 0 | L14: NO | M14: 0 | N14: 45
A15: MEF-020-04-01 | B15: Reformas del estatuto de las organizaciones sociales | C15: 0 | D15: 0 | E15: 20 | F15: 30 | G15: 10 | H15: NO | I15: 0 | J15: NO | K15: 0 | L15: NO | M15: 0 | N15: 60
A16: MINFIN-015-01-03 | B16: Solicitud de Información de Gestión del Sistema Nacional de las Finanzas Públicas, automatizada a través de las herramientas de gestión administrativa financiera | C16: 0 | D16: 0 | E16: 10 | F16: 0 | G16: 10 | H16: NO | I16: 0 | J16: NO | K16: 0 | L16: NO | M16: 0 | N16: 20
A17: MEF-005-02-01 | B17: Taller presencial para el uso de las herramientas informáticas de las Finanzas Públicas dirigido a servidores públicos que trabajen en las entidades que conforman el Presupuesto General del Estado. | C17: 0 | D17: 0 | E17: 10 | F17: 30 | G17: 10 | H17: NO | I17: 0 | J17: NO | K17: 0 | L17: NO | M17: 0 | N17: 50
A18: MINFIN-003-01-01 | B18: Actualización del Plan de Cuentas Contables para entidades del sector público no financiero | C18: 3 | D18: 0 | E18: 10 | F18: 30 | G18: 10 | H18: NO | I18: 0 | J18: NO | K18: 0 | L18: NO | M18: 0 | N18: 53
A19: MINFIN-009-02-01 | B19: Extinción de deuda entre entidades del Sector Público. | C19: 3 | D19: 0 | E19: 10 | F19: 30 | G19: 10 | H19: NO | I19: 0 | J19: NO | K19: 0 | L19: NO | M19: 0 | N19: 53
A20: MINFIN-013-03-03 | B20: Autorización de cierre de cuentas monetarias por cierre de Entidad que no pertenecen al Presupuesto General del Estado. | C20: 3 | D20: 0 | E20: 10 | F20: 0 | G20: 10 | H20: NO | I20: 0 | J20: NO | K20: 0 | L20: NO | M20: 0 | N20: 23
A21: MINFIN-013-01-04 | B21: Autorización de apertura de cuentas de fondos de terceros para las instituciones del sector público, exceptuando las de la seguridad social. | C21: 3 | D21: 0 | E21: 10 | F21: 30 | G21: 10 | H21: NO | I21: 0 | J21: NO | K21: 0 | L21: NO | M21: 0 | N21: 53
A22: MINFIN-012-01-01 | B22: Otorgamiento de garantía soberana a instituciones fuera del Presupuesto General del Estado | C22: 3 | D22: 0 | E22: 10 | F22: 30 | G22: 10 | H22: NO | I22: 0 | J22: NO | K22: 0 | L22: NO | M22: 0 | N22: 53
A23: MINFIN-003-01-06 | B23: Actualización del Catálogo de Retenciones y descuentos a beneficiarios para entidades del sector público no financiero | C23: 3 | D23: 0 | E23: 10 | F23: 0 | G23: 10 | H23: NO | I23: 0 | J23: NO | K23: 0 | L23: NO | M23: 0 | N23: 23
A24: MINFIN-013-01-05 | B24: Autorización de apertura de cuentas de Fideicomiso para las instituciones del sector público, financieras públicas, exceptuando los de la seguridad social. | C24: 3 | D24: 0 | E24: 10 | F24: 30 | G24: 0 | H24: NO | I24: 0 | J24: NO | K24: 0 | L24: NO | M24: 0 | N24: 43
A25: MINFIN-013-01-06 | B25: Autorización de apertura de cuentas en el exterior o por excepción para las instituciones del sector público no financiero, exceptuando las de la seguridad social. | C25: 3 | D25: 0 | E25: 10 | F25: 30 | G25: 10 | H25: NO | I25: 0 | J25: NO | K25: 0 | L25: NO | M25: 0 | N25: 53
A26: MINFIN-007-01-01 | B26: Autorización para contratación de endeudamiento público para las instituciones fuera del Presupuesto General del Estado. | C26: 3 | D26: 0 | E26: 20 | F26: 30 | G26: 10 | H26: NO | I26: 0 | J26: NO | K26: 0 | L26: NO | M26: 0 | N26: 63
A27: MINFIN-004-02-01 | B27: Actualización del Clasificador presupuestario de ingresos y egresos (gastos) del Sector Público | C27: 3 | D27: 0 | E27: 20 | F27: 30 | G27: 10 | H27: NO | I27: 0 | J27: NO | K27: 0 | L27: NO | M27: 0 | N27: 63
A28: MINFIN-009-01-01 | B28: Autorización de fideicomisos públicos. | C28: 3 | D28: 0 | E28: 20 | F28: 30 | G28: 10 | H28: NO | I28: 0 | J28: NO | K28: 0 | L28: NO | M28: 0 | N28: 63
A29: MINFIN-010-01-01 | B29: Autorización para inversiones financieras de entidades del Sector Público no Financiero | C29: 3 | D29: 0 | E29: 20 | F29: 30 | G29: 10 | H29: NO | I29: 0 | J29: NO | K29: 0 | L29: NO | M29: 0 | N29: 63
A30: MINFIN-002-01-04 | B30: Asignación de equipos biométricos a funcionarios autorizadores de pagos de las entidades del Sector Público. | C30: 3 | D30: 0 | E30: 20 | F30: 0 | G30: 10 | H30: NO | I30: 0 | J30: NO | K30: 0 | L30: NO | M30: 0 | N30: 33
A31: MINFIN-013-02-01 | B31: Autorización de actualización de la denominación de las cuentas de las instituciones del sector público, exceptuando las de la seguridad social. | C31: 3 | D31: 0 | E31: 20 | F31: 30 | G31: 10 | H31: NO | I31: 0 | J31: NO | K31: 0 | L31: NO | M31: 0 | N31: 63
A32: MINFIN-017-01-01 | B32: Habilitación de la opción para la carga de contratos de obras y/o servicios de años anteriores para las entidades del Presupuesto General del Estado y Empresas Públicas que reciben transferencias del Presupuesto General del Estado | C32: 3 | D32: 0 | E32: 20 | F32: 0 | G32: 10 | H32: NO | I32: 0 | J32: NO | K32: 0 | L32: NO | M32: 0 | N32: 33
A33: MINFIN-005-01-01 | B33: Capacitación virtual para el uso de las herramientas informáticas de las Finanzas Públicas dirigido a servidores públicos que trabajen en las entidades que conforman el Presupuesto General del Estado. | C33: 3 | D33: 0 | E33: 20 | F33: 30 | G33: 0 | H33: NO | I33: 0 | J33: NO | K33: 0 | L33: NO | M33: 0 | N33: 53
A34: MINFIN-002-01-08 | B34: Reposición de un nuevo equipo biométrico (dongle y/o lector) en caso de pérdida, robo, hurto y/o daño por parte de los funcionarios autorizadores de pagos de las entidades del Sector Público. | C34: 6 | D34: 0 | E34: 20 | F34: 0 | G34: 10 | H34: NO | I34: 0 | J34: NO | K34: 0 | L34: NO | M34: 0 | N34: 36
A35: MINFIN-003-01-05 | B35: Actualización del Catálogo General de asientos tipo para entidades del sector público no financiero | C35: 6 | D35: 0 | E35: 20 | F35: 0 | G35: 10 | H35: NO | I35: 0 | J35: NO | K35: 0 | L35: NO | M35: 0 | N35: 36
A36: MINFIN-013-03-02 | B36: Autorización de cierre de cuentas monetarias por cierre de entidad que pertenecen al Presupuesto General del Estado. | C36: 6 | D36: 0 | E36: 20 | F36: 30 | G36: 10 | H36: NO | I36: 0 | J36: NO | K36: 0 | L36: NO | M36: 0 | N36: 66
A37: MINFIN-002-01-07 | B37: Desactivación o baja del computador registrado para autorización de pagos mediante el uso del equipo biométrico por pérdida, robo o daño. | C37: 6 | D37: 0 | E37: 20 | F37: 0 | G37: 10 | H37: NO | I37: 0 | J37: NO | K37: 0 | L37: NO | M37: 0 | N37: 36
A38: MINFIN-013-01-03 | B38: Autorización de apertura de cuentas de crédito para las instituciones del sector público, exceptuando los de la seguridad social. | C38: 6 | D38: 0 | E38: 20 | F38: 30 | G38: 10 | H38: NO | I38: 0 | J38: NO | K38: 0 | L38: NO | M38: 0 | N38: 66
A39: MINFIN-001-01-03 | B39: Creación de usuarios especiales de consulta para entidades de control | C39: 6 | D39: 0 | E39: 20 | F39: 0 | G39: 10 | H39: NO | I39: 0 | J39: NO | K39: 0 | L39: NO | M39: 0 | N39: 36
A40: MINFIN-013-03-01 | B40: Autorización de cierre de cuentas monetarias por terminación del objeto de la cuenta correspondiente a entidades del sector público exceptuando las de la seguridad social. | C40: 6 | D40: 0 | E40: 20 | F40: 30 | G40: 10 | H40: NO | I40: 0 | J40: NO | K40: 0 | L40: NO | M40: 0 | N40: 66
A41: MINFIN-008-01-01 | B41: Autorización para la creación, modificación o eliminación de tasas de las instituciones del Presupuesto General del Estado | C41: 6 | D41: 0 | E41: 20 | F41: 30 | G41: 10 | H41: NO | I41: 0 | J41: NO | K41: 0 | L41: NO | M41: 0 | N41: 66
A42: MEF-019-02-01 | B42: Emisión de dictamen presupuestario de las entidades del Presupuesto General del Estado | C42: 6 | D42: 0 | E42: 20 | F42: 30 | G42: 10 | H42: NO | I42: 0 | J42: NO | K42: 0 | L42: NO | M42: 0 | N42: 66
A43: MINFIN-002-01-06 | B43: Devolución del equipo biométrico por fusión, absorción, cambio de denominación, cambio de modelo de gestión administrativa financiera o cierre de las entidades del Sector Público. | C43: 6 | D43: 0 | E43: 20 | F43: 0 | G43: 10 | H43: NO | I43: 0 | J43: NO | K43: 0 | L43: NO | M43: 0 | N43: 36
A44: MINFIN-015-01-02 | B44: Información publicada sobre las finanzas públicas | C44: 6 | D44: 0 | E44: 20 | F44: 0 | G44: 10 | H44: NO | I44: 0 | J44: NO | K44: 0 | L44: NO | M44: 0 | N44: 36
A45: MINFIN-002-01-02 | B45: Actualización de funcionarios autorizadores de pagos de las Entidades del Sector Público en el Sistema Biométrico de pagos. | C45: 6 | D45: 0 | E45: 20 | F45: 0 | G45: 10 | H45: NO | I45: 0 | J45: NO | K45: 0 | L45: NO | M45: 0 | N45: 36
A46: MINFIN-013-01-01 | B46: Autorización de apertura de cuentas operativas de las instituciones del sector público, exceptuando los de la seguridad social. | C46: 6 | D46: 0 | E46: 10 | F46: 30 | G46: 10 | H46: NO | I46: 0 | J46: NO | K46: 0 | L46: NO | M46: 0 | N46: 56
A47: MINFIN-013-01-02 | B47: Autorización de apertura de cuentas de donación para las instituciones del sector público, exceptuando los de la seguridad social. | C47: 6 | D47: 0 | E47: 10 | F47: 30 | G47: 10 | H47: NO | I47: 0 | J47: NO | K47: 0 | L47: NO | M47: 0 | N47: 56
A48: MINFIN-003-01-02 | B48: Actualización del Catálogo General de Bienes para las entidades del sector público no financiero | C48: 6 | D48: 0 | E48: 10 | F48: 30 | G48: 10 | H48: NO | I48: 0 | J48: NO | K48: 0 | L48: NO | M48: 0 | N48: 56
A49: MINFIN-001-01-01 | B49: Creación de usuarios administradores financieros/informáticos de las Entidades del Sector Público no Financiero | C49: 6 | D49: 0 | E49: 20 | F49: 0 | G49: 10 | H49: NO | I49: 0 | J49: NO | K49: 0 | L49: NO | M49: 0 | N49: 36
A50: MEF-019-01-01 | B50: Emisión de certificaciones presupuestarias anuales y/o plurianuales de la entidades del Presupuesto General del Estado. | C50: 10 | D50: 0 | E50: 5 | F50: 30 | G50: 0 | H50: NO | I50: 0 | J50: NO | K50: 0 | L50: NO | M50: 0 | N50: 45
A51: MINFIN-002-01-01 | B51: Enrolamiento en el Sistema Biométrico de pagos para funcionarios autorizadores de pagos de las entidades del Sector Público. | C51: 10 | D51: 0 | E51: 5 | F51: 0 | G51: 0 | H51: NO | I51: 0 | J51: NO | K51: 0 | L51: NO | M51: 0 | N51: 15
A52: MINFIN-001-01-02 | B52: Creación de usuarios de Gobiernos Autónomos Descentralizados y Empresas Públicas. | C52: 10 | D52: 0 | E52: 5 | F52: 0 | G52: 10 | H52: NO | I52: 0 | J52: NO | K52: 0 | L52: NO | M52: 0 | N52: 25
A53: MINFIN-001-02-01 | B53: Reseteo y Activación de Contraseñas | C53: 10 | D53: 0 | E53: 5 | F53: 0 | G53: 10 | H53: NO | I53: 0 | J53: NO | K53: 0 | L53: NO | M53: 0 | N53: 25
A54: MINFIN-003-01-03 | B54: Actualización del Catálogo General de Existencias para el sector público no financiero | C54: 10 | D54: 0 | E54: 5 | F54: 30 | G54: 10 | H54: NO | I54: 0 | J54: NO | K54: 0 | L54: NO | M54: 0 | N54: 55
A55: MINFIN-009-03-01 | B55: Validación de fondos | C55: 10 | D55: 0 | E55: 5 | F55: 0 | G55: 10 | H55: NO | I55: 0 | J55: NO | K55: 0 | L55: NO | M55: 0 | N55: 25
A56: MINFIN-015-01-01 | B56: Solicitud oficial sobre entrega de información de las finanzas públicas | C56: 10 | D56: 0 | E56: 10 | F56: 30 | G56: 10 | H56: NO | I56: 0 | J56: NO | K56: 0 | L56: NO | M56: 0 | N56: 60
A57: MINFIN-004-01-01 | B57: Actualización del catálogo de instituciones y entidades operativas desconcentradas del Sector Público No Financiero | C57: 10 | D57: 0 | E57: 5 | F57: 0 | G57: 10 | H57: NO | I57: 0 | J57: NO | K57: 0 | L57: NO | M57: 0 | N57: 25
A58: MINFIN-002-01-03 | B58: Desactivación y activación de funcionarios autorizadores de pagos de las entidades del Sector Público enrolados por ausencia temporal o permanente. | C58: 10 | D58: 0 | E58: 5 | F58: 0 | G58: 10 | H58: NO | I58: 0 | J58: NO | K58: 0 | L58: NO | M58: 0 | N58: 25
A59: MINFIN-011-01-01 | B59: Habilitación de registros contables para las entidades que transaccionan en el sistema e-SIGEF a nivel nacional. | C59: 10 | D59: 0 | E59: 5 | F59: 0 | G59: 10 | H59: NO | I59: 0 | J59: NO | K59: 0 | L59: NO | M59: 0 | N59: 25
A60: MEF-016-02-01 | B60: Asistencia técnica, conceptual y normativa de las Finanzas Públicas a través del canal telefónico. | C60: 10 | D60: 0 | E60: 5 | F60: 0 | G60: 10 | H60: NO | I60: 0 | J60: NO | K60: 0 | L60: NO | M60: 0 | N60: 25
A61: MINFIN-016-01-01 | B61: Asistencia técnica, conceptual y normativa de las Finanzas Públicas de forma presencial. | C61: 10 | D61: 0 | E61: 5 | F61: 0 | G61: 10 | H61: NO | I61: 0 | J61: NO | K61: 0 | L61: NO | M61: 0 | N61: 25
A62: MEF-016-03-01 | B62: Asistencia técnica, conceptual y normativa de las Finanzas Públicas mediante correo electrónico u oficio. | C62: 10 | D62: 0 | E62: 5 | F62: 30 | G62: 10 | H62: NO | I62: 0 | J62: NO | K62: 0 | L62: NO | M62: 0 | N62: 55
A63: MINFIN-014-03-01 | B63: Aprobación de modificaciones a los distributivos de remuneraciones mensuales unificadas institucionales, elaboradas por las entidades que forman parte del Presupuesto General del Estado | C63: 10 | D63: 0 | E63: 5 | F63: 0 | G63: 10 | H63: NO | I63: 0 | J63: NO | K63: 0 | L63: NO | M63: 0 | N63: 25
A64: MINFIN-014-02-01 | B64: Aprobación de reprogramaciones financieras elaboradas por las entidades que forman parte del Presupuesto General del Estado. | C64: 10 | D64: 0 | E64: 5 | F64: 0 | G64: 10 | H64: NO | I64: 0 | J64: NO | K64: 0 | L64: NO | M64: 0 | N64: 25
A65: MINFIN-014-01-01 | B65: Aprobación de modificaciones presupuestarias para las entidades que conforman el Presupuesto General del Estado | C65: 10 | D65: 0 | E65: 5 | F65: 0 | G65: 10 | H65: NO | I65: 0 | J65: NO | K65: 0 | L65: NO | M65: 0 | N65: 25
